Cogmind - Beta 11.1 @@@ ROGUE MODE // 2022.12.22 @ 15:44:18 Player: HeartGrenade Result: Establishing 0b11! Performance ------------- Evolutions (9) 4500 Regions Visited (33) 6600 Robots Destroyed (561) 2805 Value Destroyed (28399) 28399 Prototype IDs (294) 5880 Alien Tech Used (2) 400 Bonus (43546) 43546 TOTAL SCORE: 92130 Bonus ------- Triggered High Security 500 High Alert Combat Kills 9239 Follower Combat Kills 1634 Network Hubs Disabled 200 Met Data Miner 300 Met Imprinter 300 Destroyed Z-Imprinter 1000 Triggered Deep Caves Wall 500 Exposed GOLEM Chamber 500 Met Warlord at Base 500 MAIN.C Attacked Warlord 500 Warlord Defense Kills 548 Built Enhanced Grunts 300 A7 Reached Mainframe 300 Met R17 at Cetus 500 Met Warlord at Research 2000 Destroyed MAIN.C Guards 500 Met MAIN.C 5000 Hacked MAIN.C 300 Destroyed MAIN.C Shell 5000 Destroyed MAIN.C 10000 Met Warlord at Command 2000 Win 3000 Friendly Fire -1075 Cogmind --------- Core Integrity 870/1600 Matter 175/300 Energy 900/1150 System Corruption 34% Temperature Cool (0) Movement Walking (180) Ox1 Location 0b11 Command Parts ------- > --- POWER (4) -------- Micro Antimatter Reactor > --- PROPULSION (6) --- Assembled Alloy Leg Assembled Alloy Leg > --- UTILITY (13) ----- Assembled Biocell Array Triangulator Assembled Combat Suite Experimental Core Analyzer Improved Armor Integrity Analyzer Stasis Canceller Graphene Brace GOLEM Unit > --- WEAPON (3) ------- Enhanced Nova Cannon > --- INVENTORY (5) ---- Compact HERF Cannon Enhanced Nova Cannon Core Stripper Vortex Lance (29) Peak State ------------ > --- POWER ------------ Light Quantum Reactor Zero-point Reactor Vortex Chain Reactor > --- PROPULSION ------- Armored Heavy Treads Biometal Heavy Treads Experimental Biometal Heavy Treads > --- UTILITY ---------- Experimental Cooling System Experimental Cooling System Huge Storage Unit Assembled Biocell Array Assembled Combat Suite Experimental Targeting Computer Experimental Core Analyzer Improved Transmission Jammer Heavy Regenerative Plating Graphene Brace GOLEM Unit > --- WEAPON ----------- Assembled Focal Cannon Assembled Focal Cannon Enhanced Nova Cannon > --- INVENTORY -------- Reinforced Quantum Reactor Improved Heavy Treads Zionite Biocell Triangulator Improved Armor Integrity Analyzer Stasis Canceller Heavy Armor Plating Advanced Force Field Subatomic Replicator Compact HERF Cannon Enhanced Nova Cannon Graviton Cannon Micro-nuke Launcher Advanced Remote Datajack RU-N14's Throwing Claymores Core Stripper Vortex Lance Vortex Lance [Rating: 231] Favorites ----------- Power Assembled Flux Generator Engine Improved Deuterium Engine Power Core Enhanced Nuclear Core Reactor Assembled Flux Generator Propulsion Assembled Alloy Leg Treads Improved Treads Leg Assembled Alloy Leg Wheel Centrium Wheel Utility Assembled Nanovents Device Assembled Nanovents Storage High-capacity Storage Unit Processor Core Analyzer Hackware Hacking Suite Protection Assembled Alloy Armor Weapon Assembled Focal Cannon Energy Gun Beam Rifle Energy Cannon Assembled Focal Cannon Ballistic Gun Enhanced Autogun Launcher Mini Grenade Launcher Special Weapon RU-N14's Throwing Claymores Impact Weapon Power Maul Slashing Weapon Ripper Piercing Weapon Vortex Lance Build | -11 -10 -9 -9 -9 -8 -8 -7 -7 -7 -7 -7 -6 -6 -6 -6 -6 -5 -5 -5 -5 -5 -4 -4 -4 -4 -4 -4 -3 -3 -2 -2 -1 -1 ------- Run | Scr Mat Mat Min Exi Min Mat Fac Low Low Zio Dee Pro Fac Low Low Dat Pro Fac Upp Upp War Pro Fac Ext Cet Arc Hub Res Tes Res Qua Acc Com Slots Evolved 18 | . . 2 . . . 2 2 . . . . . 2 . . . . 2 . . . . 2 . . . . 2 . 2 . 2 . Power 3 | . . . . . . . . . . . . . 1 . . . . . . . . . 1 . . . . . . . . 1 . Propulsion 4 | . . 1 . . . 1 . . . . . . . . . . . . . . . . . . . . . 2 . . . . . Utility 10 | . . 1 . . . 1 2 . . . . . 1 . . . . 2 . . . . 1 . . . . . . 2 . . . Weapon 1 | . . . . . . . . . . . . . . . . . . . . . . . . . . . . . . . . 1 . Parts Attached 404 | 3 5 27 9 . 10 26 42 9 11 10 49 6 3 1 1 . 2 13 2 . 7 3 25 5 4 8 3 16 15 16 11 19 43 Power 38 | . . 2 1 . 1 2 4 . 1 . 6 1 1 . . . . . . . . . 4 2 . . 1 3 . 2 . 2 5 Engine 10 | . . 2 1 . 1 2 2 . . . 2 . . . . . . . . . . . . . . . . . . . . . . Core 6 | . . . . . . . 2 . 1 . 1 . 1 . . . . . . . . . 1 . . . . . . . . . . Reactor 22 | . . . . . . . . . . . 3 1 . . . . . . . . . . 3 2 . . 1 3 . 2 . 2 5 Propulsion 74 | 2 . 8 3 . . 6 7 1 2 . 4 . . . . . 1 5 . . 3 . 7 2 1 2 1 1 4 1 4 2 7 Treads 60 | 2 . 5 3 . . 6 7 1 2 . 2 . . . . . . 4 . . 3 . 1 1 1 2 1 1 4 1 4 2 7 Leg 3 | . . . . . . . . . . . 1 . . . . . . . . . . . 2 . . . . . . . . . . Wheel 11 | . . 3 . . . . . . . . 1 . . . . . 1 1 . . . . 4 1 . . . . . . . . . Hover . | . . . . . . . . . . . . . . . . . . . . . . . . . . . . . . . . . . Flight . | . . . . . . . . . . . . . . . . . . . . . . . . . . . . . . . . . . Utility 189 | . 2 4 . . 3 10 20 5 5 6 16 1 2 1 1 . 1 6 1 . 4 3 14 1 3 6 1 12 10 12 7 11 21 Device 115 | . . 1 . . 2 4 13 4 4 4 4 . 1 . . . 1 4 . . 2 2 11 1 1 5 1 12 7 5 5 6 15 Storage 8 | . . 1 . . . 1 1 . . . 1 . . . . . . 1 . . . . . . 1 . . . . 1 . 1 . Processor 14 | . 1 1 . . . 1 2 . 1 . . . . . 1 . . . 1 . . . . . . . . . . 4 1 . 1 Hackware 6 | . . . . . . . 1 . . . . . . . . . . . . . . . 1 . . 1 . . . . . . 3 Protection 46 | . 1 1 . . 1 4 3 1 . 2 11 1 1 1 . . . 1 . . 2 1 2 . 1 . . . 3 2 1 4 2 Artifact . | . . . . . . . . . . . . . . . . . . . . . . . . . . . . . . . . . . Weapon 103 | 1 3 13 5 . 6 8 11 3 3 4 23 4 . . . . . 2 1 . . . . . . . . . 1 1 . 4 10 Energy Gun 17 | . . 2 1 . 3 1 1 . . . 7 1 . . . . . 1 . . . . . . . . . . . . . . . Energy Cannon 6 | . . . 1 . . 2 . . . . . . . . . . . . . . . . . . . . . . . . . . 3 Ballistic Gun 42 | 1 3 7 2 . 2 4 6 1 3 2 9 2 . . . . . . . . . . . . . . . . . . . . . Ballistic Cannon . | . . . . . . . . . . . . . . . . . . . . . . . . . . . . . . . . . . Launcher 16 | . . 4 1 . 1 1 2 1 . . 3 1 . . . . . 1 . . . . . . . . . . . . . . 1 Special Weapon 13 | . . . . . . . . . . . 3 . . . . . . . 1 . . . . . . . . . 1 1 . 4 3 Impact Weapon 6 | . . . . . . . 2 1 . 2 . . . . . . . . . . . . . . . . . . . . . . 1 Slashing Weapon 1 | . . . . . . . . . . . 1 . . . . . . . . . . . . . . . . . . . . . . Piercing Weapon 2 | . . . . . . . . . . . . . . . . . . . . . . . . . . . . . . . . . 2 Special Melee Weapon . | . . . . . . . . . . . . . . . . . . . . . . . . . . . . . . . . . . Unidentified Prototypes 28 | . . 1 1 . . 3 1 1 . 1 9 . . . . . . . . . 1 . . . 2 1 . 1 1 2 . . 3 Corrupted Parts 2 | . . . . . . . . . . . . . . . . . . . . . . . . . . 1 1 . . . . . . System Corruption 13 | . . . . . . . . . . . . . . . . . . . . . . . . . . 8 5 . . . . . . Parts Lost 118 | . 2 4 5 . 4 1 3 2 3 . 14 2 . 1 1 . 1 11 . . . . 5 4 1 . . 3 5 10 3 9 24 Power 15 | . . . 1 . 1 . . . 1 . 2 1 . . . . . . . . . . 1 1 . . . 1 . . . 1 5 Propulsion 22 | . . 2 3 . . 1 . 2 1 . 5 . . . . . . 2 . . . . . . . . . . . . . . 6 Utility 66 | . 1 . . . 2 . 2 . . . 7 1 . 1 1 . 1 7 . . . . 3 3 1 . . 2 5 9 3 7 10 Weapon 15 | . 1 2 1 . 1 . 1 . 1 . . . . . . . . 2 . . . . 1 . . . . . . 1 . 1 3 Highest Loss Streak 11 | . 2 2 5 . 3 1 1 2 2 . 5 1 . 1 1 . 1 6 . . . . 2 3 1 . . 1 2 3 1 3 11 To Critical Strikes . | . . . . . . . . . . . . . . . . . . . . . . . . . . . . . . . . . . Average Slot Usage (%) 86 | . 75 83 94 100 98 99 99 92 90 99 91 84 86 81 81 81 80 85 87 88 86 88 88 89 85 83 80 76 76 78 78 74 72 Engine 1 | . . 5 9 11 10 9 5 7 1 . 2 2 . . . . . . . . . . . . . . . . . . . . . Reactor 5 | . . . . . . . . . . . 2 4 6 6 6 6 6 5 5 5 5 5 8 9 10 10 10 8 9 8 8 6 7 Treads 14 | . 28 21 30 33 33 35 29 24 23 28 16 . . . . . . 8 11 11 9 11 4 . 5 5 10 13 12 12 11 11 9 Leg 4 | . . . . . . . . . . . 6 14 12 12 12 12 12 9 11 11 11 11 10 10 10 8 . . . . . . . Wheel 1 | . . 7 . . . . . . . . 1 7 6 6 6 6 6 1 . . . . 5 9 . . . . . . . . . Device 16 | . . 6 11 11 2 8 14 7 7 6 4 14 12 12 8 6 8 20 13 16 14 15 19 22 27 29 30 26 23 25 21 21 23 Storage 8 | . . 7 11 11 11 9 7 7 7 7 7 7 12 12 12 12 12 11 11 11 11 11 10 10 10 10 10 9 9 8 8 7 6 Processor 12 | . 11 11 11 11 11 9 12 22 24 28 20 14 12 12 15 18 18 11 16 16 16 16 12 7 5 5 5 4 4 8 10 10 7 Protection 6 | . 8 . . . 8 8 7 6 7 7 13 6 5 5 6 6 3 5 7 5 6 5 5 5 5 5 5 4 7 6 7 3 . Energy Cannon 6 | . . . . . . 5 . . . . . 2 12 11 12 12 12 10 10 11 11 11 10 9 10 10 10 9 8 7 8 9 8 Ballistic Gun 4 | . 27 15 10 11 15 12 14 13 12 10 10 9 . . . . . . . . . . . . . . . . . . . . . Naked Turns . | . . . . . . . . . . . . . . . . . . . . . . . . . . . . . . . . . . Heaviest Build 228 | 2 4 54 54 54 56 60 71 65 62 62 66 83 94 117 116 115 116 124 122 119 125 125 147 137 177 177 174 188 190 214 214 228 217 Greatest Support 260 | 3 40 60 69 69 69 92 94 94 89 89 89 28 28 28 28 28 28 88 60 60 70 60 80 60 80 180 180 260 255 255 230 230 230 Greatest Overweight (x) 8 | . 1 1 1 . . . 1 1 1 . 2 2 3 4 4 4 4 4 2 1 2 2 8 4 2 2 . . 1 . . 1 2 Average Overweight (x) . | . . . . . . . . . . . . 1 3 3 4 3 4 2 1 1 1 1 2 3 1 1 . . . . . . . Largest Inventory Capacity 25 | 5 5 20 20 20 20 20 20 20 20 20 20 20 20 20 20 20 20 20 20 20 20 20 20 20 25 25 25 25 25 25 25 25 25 Average Capacity 21 | 5 5 15 20 20 20 20 20 20 20 20 20 20 20 20 20 20 20 20 20 20 20 20 20 20 22 25 25 25 25 25 25 25 23 Most Carried 25 | 2 5 20 18 18 20 20 20 20 20 20 20 20 20 20 20 20 20 20 20 20 20 20 20 20 25 25 25 25 25 25 25 25 25 Average Carried 20 | 1 4 10 15 16 18 19 19 19 19 19 19 19 19 19 19 20 19 19 19 20 19 20 19 19 22 24 24 24 24 24 24 24 21 Final Capacity 25 | 5 5 20 20 20 20 20 20 20 20 20 20 20 20 20 20 20 20 20 20 20 20 20 20 20 25 25 25 25 25 25 25 25 5 Final Carried 25 | 2 5 18 15 18 17 20 20 19 20 20 20 20 20 19 20 20 20 20 20 20 20 20 20 20 25 25 25 25 25 25 25 24 5 Class Distribution -------------------- 24% | Mutant 21% | Scavenger-Mutant 20% | Generator-Mutant 14% | Generator-Golem 11% | Golem Dominant Class ---------------- Mutant | -10/Materials Scavenger-Mutant | -9/Materials Mutant | -9/Mines Mutant | -9/Exiles Mutant | -8/Mines Mutant | -8/Materials Scavenger-Mutant | -7/Factory Scavenger-Mutant | -7/Lower Caves Scavenger-Mutant | -7/Lower Caves Scavenger-Mutant | -7/Zion Mutant | -7/Deep Caves Mutant | -6/Proximity Caves Mutant | -6/Factory Mutant | -6/Lower Caves Mutant | -6/Lower Caves Golem | -6/Data Miner Mutant | -5/Proximity Caves Golem | -5/Factory Golem | -5/Upper Caves Golem | -5/Upper Caves Commander-Golem | -5/Warlord Scavenger-Mutant | -4/Proximity Caves Generator-Golem | -4/Factory Generator-Golem | -4/Extension Generator-Golem | -4/Cetus Generator-Mutant | -4/Archives Generator-Mutant | -4/Hub_04(d) Generator-Mutant | -3/Research Generator-Mutant | -3/Testing Generator-Mutant | -2/Research Generator-Mutant | -2/Quarantine Generator-Mutant | -1/Access Generator-Mutant | -1/Command Resources | -11 -10 -9 -9 -9 -8 -8 -7 -7 -7 -7 -7 -6 -6 -6 -6 -6 -5 -5 -5 -5 -5 -4 -4 -4 -4 -4 -4 -3 -3 -2 -2 -1 -1 ----------- Run | Scr Mat Mat Min Exi Min Mat Fac Low Low Zio Dee Pro Fac Low Low Dat Pro Fac Upp Upp War Pro Fac Ext Cet Arc Hub Res Tes Res Qua Acc Com Matter Collected 7881 | 134 304 605 160 34 200 807 1354 248 490 80 761 255 . 67 98 . 20 180 20 . 70 30 284 153 99 97 10 174 118 261 127 172 469 Remotely . | . . . . . . . . . . . . . . . . . . . . . . . . . . . . . . . . . . Salvage Created 28682 | . 376 1093 99 . 222 1400 1321 216 463 46 1089 227 . 80 262 . 141 1117 291 52 484 196 2205 995 400 418 344 2037 1722 1968 2265 3297 3856 Parts 1420 | . 28 85 6 . 10 80 76 14 30 1 39 14 . 6 14 . 8 63 19 6 17 9 101 44 19 27 28 108 75 94 100 128 171 Haulers Intercepted 11 | . . 2 . . . 5 2 . . . . . . . . . . . . . . . . . . . . . . . . 2 . Recyclers Shooed 8 | . . 5 . . 1 . . . . . . . . . . . . 1 . . . . . . . . . . . . . 1 . Parts Field Recycled . | . . . . . . . . . . . . . . . . . . . . . . . . . . . . . . . . . . Retrieved Matter . | . . . . . . . . . . . . . . . . . . . . . . . . . . . . . . . . . . Parts Self-Destructed 121 | . . . . . . . . 14 27 1 . 12 . 6 14 . 13 . 19 6 . 9 . . . . . . . . . . . Prevented . | . . . . . . . . . . . . . . . . . . . . . . . . . . . . . . . . . . Kills | -11 -10 -9 -9 -9 -8 -8 -7 -7 -7 -7 -7 -6 -6 -6 -6 -6 -5 -5 -5 -5 -5 -4 -4 -4 -4 -4 -4 -3 -3 -2 -2 -1 -1 ------- Run | Scr Mat Mat Min Exi Min Mat Fac Low Low Zio Dee Pro Fac Low Low Dat Pro Fac Upp Upp War Pro Fac Ext Cet Arc Hub Res Tes Res Qua Acc Com Combat Hostiles Destroyed 505 | . 13 27 10 . 5 25 23 4 8 . 53 8 . 3 10 . 2 23 8 1 5 2 32 14 6 2 4 26 25 34 29 47 56 Melee 1 | . . . . . . . . . . . . . . . . . . . . . . . . . . . . . . . . . 1 Guns 104 | . 13 16 7 . 4 20 18 4 8 . 8 5 . . . . . 1 . . . . . . . . . . . . . . . Cannons 272 | . . . . . . 1 . . . . 5 . . 3 10 . 2 17 5 1 4 2 31 14 6 2 4 26 21 31 28 29 30 AOE 113 | . . 11 3 . 1 3 5 . . . 38 3 . . . . . 5 3 . . . . . . . . . 4 3 1 18 15 Classes Destroyed 28 | . 2 4 1 . 1 2 5 . . . 3 . . . . . 1 . . . 2 . 1 1 . . . . . 3 1 1 . Worker 11 | . . . . . . . . . . . . . . . . . . . . . . . 3 . . . . . 2 . . 5 1 Builder 15 | . . . . . . 1 1 . . . . . . . . . . 2 . . . . 2 . . . 2 . 2 . 1 4 . Tunneler 7 | . . . . . 1 . . . . . . . . . . . . 1 . . . . 1 . . . . . . 2 . 2 . Hauler 11 | . . 2 . . . 5 2 . . . . . . . . . . . . . . . . . . . . . . . . 2 . Recycler 14 | . . 4 . . . 2 2 . . . . . . . . . . . . . . . 1 . . . . 1 . . . 2 2 Minesweeper 2 | . . . . . . . . . . . . . . . . . 1 . . . . 1 . . . . . . . . . . . Mechanic 5 | . . . . . . . . . . . . . . . . . . . . . 1 . . 1 . . . . 2 . . . 1 Operator 12 | . . . . . . . 1 . . . . . . . . . . . . . . . . . . 7 1 . 1 . 1 . 1 Watcher 23 | . . 3 . . . 2 2 . . . . . . . . . . 1 . . . . 3 2 . . 1 1 1 . . 4 3 Swarmer 118 | . 6 14 4 . . 9 5 . 2 . . 7 . 3 10 . 1 4 3 . . . 8 6 . . . . . 19 . 3 14 Saboteur 1 | . . . . . . . . . . . . . . . . . . . . . . . . . . . . . . . . 1 . Grunt 147 | . 7 8 . . 5 8 6 2 3 1 . . . . . . . 10 4 . 3 2 13 . 4 . . 7 13 3 11 20 17 Brawler 14 | . . . . . . . 1 . 1 . . . . . . . . . . . 1 . 1 2 . . . . 2 . 1 3 2 Duelist 12 | . . . . . . 1 . . . . . . . . . . . . . . . . 1 . . . . 1 . . . 4 5 Protector 4 | . . . . . . . . . . . . . . . . . . . . . 1 . . . . . . . . . 1 2 . Sentry 38 | . . 5 . . . 7 5 . 1 . . 1 . . . . 1 2 . . . . 2 4 . 2 2 2 . . . 1 3 Demolisher 2 | . . . . . . . . . . . . . . . . . . . . . . . . . . . . . . 2 . . . Specialist 5 | . . . . . . . 2 . . . . . . . . . . . . . . . . . . . . . . . 2 . 1 Hunter 30 | . . . . . . . 1 1 1 . . . . . . . . 3 1 1 . . . . . . . 4 4 5 4 5 . Programmer 64 | . . . . . . . 3 1 . . . . . . . . . 4 . . . . 7 . . . 2 12 6 . 9 8 12 Behemoth 3 | . . . . . . . . . . . . . . . . . . . . . . . . 2 . . . . . 1 . . . Cetus Guard 2 | . . . . . . . . . . . . . . . . . . . . . . . . . 2 . . . . . . . . M Guard 1 | . . . . . . . . . . . . . . . . . . . . . . . . . . . . . . . . . 1 Striker 2 | . . . . . . . . . . . . . . . . . . . . . . . . . . . . . . 2 . . . Executioner 2 | . . . . . . . . . . . . . . . . . . . . . . . . . . . . . . 2 . . . Alpha 7 1 | . . . . . . . . . . . . . . . . . . . . . . . . . . . . . . . 1 . . Z-Technician 4 | . . . . . . . . . . . 4 . . . . . . . . . . . . . . . . . . . . . . Z-Light 8 | . . . . . . . . . . . 8 . . . . . . . . . . . . . . . . . . . . . . Assembler 2 | . . . . . . . . . . . 2 . . . . . . . . . . . . . . . . . . . . . . Assembled 48 | . . . 6 . . . . . . . 42 . . . . . . . . . . . . . . . . . . . . . . Golem 2 | . . . . . . . . . . . 2 . . . . . . . . . . . . . . . . . . . . . . Thug 1 | . . . . . . . . . . . . . . . . . . . . . . . . 1 . . . . . . . . . Bouncer 1 | . . . . . . . . . . . . . . . . . . . . . 1 . . . . . . . . . . . . Best Kill Streak 38 | . 3 9 4 . 2 6 7 2 7 . 38 4 . 3 4 . 1 13 7 1 2 3 8 6 3 3 3 4 11 8 8 22 14 Combat Bots Only 36 | . 3 9 4 . 2 4 7 2 7 . 36 4 . 3 4 . 1 12 7 1 2 2 7 6 3 2 3 4 8 8 8 19 13 Max Kills in Single Turn 23 | . 1 3 2 . 1 3 2 1 1 1 23 3 . 1 1 . 1 3 3 1 2 1 2 1 1 1 1 2 5 4 1 6 4 Gunslinging 1 | . . 1 . . . . . . . . . . . . . . . . . . . . . . . . . . . . . . . Exploded 22 | . . 3 2 . 1 3 2 . . . 22 3 . . . . . 3 3 . . . . . . . . . 2 3 1 3 3 Melee 1 | . . . . . . . . . . . . . . . . . . . . . . . . . . . . . . . . . 1 Uniques/NPCs Destroyed 2 | . . . . . . . . . . . 1 . . . . . . . . . . . . . . . . . . . . . 1 Z-Imprinter (-7/Deep Caves) MAIN.C (-1/Command) Combat | -11 -10 -9 -9 -9 -8 -8 -7 -7 -7 -7 -7 -6 -6 -6 -6 -6 -5 -5 -5 -5 -5 -4 -4 -4 -4 -4 -4 -3 -3 -2 -2 -1 -1 -------- Run | Scr Mat Mat Min Exi Min Mat Fac Low Low Zio Dee Pro Fac Low Low Dat Pro Fac Upp Upp War Pro Fac Ext Cet Arc Hub Res Tes Res Qua Acc Com Damage Taken 38880 | . 562 982 637 . 424 1030 1749 401 527 . 2790 447 . 460 506 . 111 2502 705 . 326 193 2392 1439 334 115 221 1397 2058 2001 2517 3617 8437 Core 3164 | . 122 160 151 . 18 37 217 35 81 . 277 45 . . 43 . 12 315 14 . 47 . 141 188 39 17 37 83 83 166 106 163 567 Absorbed by Shields 6129 | . . . . . . . 352 32 108 . 4 . . . . . 12 114 . . . . 66 467 127 41 . 355 452 948 1126 920 1005 Reduced by Siege Mode 1517 | . . . . . . . . . . . . . . . . . . . . . . . . . . . . 104 154 124 120 322 693 Redirected to Shielding 215 | . 51 3 . . . . . . . . 161 . . . . . . . . . . . . . . . . . . . . . . Regen/Repaired (Parts) 2948 | . . . . . . 222 163 . . 846 . . . . . . . 88 . . . . 146 . . . . . 550 . 269 . 664 Core Remaining (%) 64 | 100 51 . . . 17 93 . . . . . 6 . . . . 93 . . . . 62 . . . . 63 . 87 . 81 . 54 Volleys Fired 1567 | . 44 78 23 . 18 86 93 11 20 . 73 19 8 14 30 . 16 74 22 4 21 28 111 60 24 32 22 99 91 77 95 96 178 Largest 3 | . 2 2 2 . 2 2 2 2 2 . 2 2 1 1 1 . 1 2 1 2 2 2 2 2 2 2 2 2 2 2 2 3 2 Hottest 145 | . 40 79 79 . 79 136 58 53 53 . 100 60 25 25 25 . 25 60 25 50 50 50 50 50 50 50 50 50 50 50 50 75 145 Shots Fired 2455 | . 87 149 39 . 32 171 178 21 41 . 118 35 8 14 30 . 16 97 22 5 30 35 153 94 44 51 32 160 126 129 159 151 228 Gun 807 | . 87 142 36 . 30 142 171 19 41 . 97 33 . . . . . 9 . . . . . . . . . . . . . . . Cannon 1568 | . . . . . . 28 . . . . . . 8 14 30 . 16 82 21 5 30 35 153 94 44 51 32 160 121 128 159 140 217 Launcher 44 | . . 7 3 . 2 1 7 2 . . 10 2 . . . . . 6 . . . . . . . . . . . . . . 4 Special 36 | . . . . . . . . . . . 11 . . . . . . . 1 . . . . . . . . . 5 1 . 11 7 Kinetic 708 | . 87 111 16 . 21 142 171 19 41 . 72 28 . . . . . . . . . . . . . . . . . . . . . Thermal 1576 | . . 31 20 . 9 28 . . . . . . 8 14 30 . 16 82 21 5 30 35 153 94 44 51 32 160 121 128 159 140 165 Explosive 79 | . . 7 3 . 2 1 7 2 . . 21 2 . . . . . 6 1 . . . . . . . . . 5 1 . 11 10 Electromagnetic 64 | . . . . . . . . . . . 12 . . . . . . . . . . . . . . . . . . . . . 52 Phasic 27 | . . . . . . . . . . . 13 5 . . . . . 9 . . . . . . . . . . . . . . . Robot Hit Streak 42 | . 16 20 15 . 11 16 15 22 8 . 14 5 . 6 4 . 5 19 5 3 8 7 33 19 9 9 7 31 42 28 28 42 29 Robot Miss Streak 6 | . 3 3 4 . 1 4 6 1 2 . 3 3 . 3 2 . 1 3 2 . 2 1 2 2 3 3 3 3 2 3 4 1 3 Penetration Max 1 | . . . . . . . 1 . . . . . . . . . . . . . . . . . . . . . . . . . . Secondary Targets 12 | . . 3 1 . 1 4 . . 3 . . . . . . . . . . . . . . . . . . . . . . . . Max Gunslinging Chain 1 | . . 1 1 . 1 1 . . 1 . . . . . . . . . . . . . . . . . . . . . . . . Shots Hit Robots 1625 | . 64 104 20 . 26 118 125 15 30 1 60 17 . 3 15 . 5 61 10 1 15 11 110 75 28 28 10 101 77 89 111 114 181 Core Hits 1021 | . 23 56 15 . 16 52 66 11 18 . 104 13 . 3 9 . 2 40 10 1 10 5 59 27 13 12 10 48 59 52 58 123 106 Critical Kills 5 | . . . . . . 2 2 . . . . 1 . . . . . . . . . . . . . . . . . . . . . Critical Parts Destroyed 3 | . 1 1 . . . . 1 . . . . . . . . . . . . . . . . . . . . . . . . . . Critical Strikes 20 | . 1 4 . . . 2 3 . . . 1 1 . . . . . . . . . . . . . . . . 2 . . 2 4 Burn 3 | . . 3 . . . . . . . . . . . . . . . . . . . . . . . . . . . . . . . Meltdown 2 | . . . . . . 2 . . . . . . . . . . . . . . . . . . . . . . . . . . . Destroy 6 | . 1 1 . . . . 3 . . . . 1 . . . . . . . . . . . . . . . . . . . . . Sever 9 | . . . . . . . . . . . 1 . . . . . . . . . . . . . . . . . 2 . . 2 4 Melee Attacks 47 | . . . . . . . 4 2 . 12 4 . . . . . . . . . . . . . . . . . . . . . 25 Kinetic 5 | . . . . . . . . . . . . . . . . . . . . . . . . . . . . . . . . . 5 Impact 18 | . . . . . . . 4 2 . 12 . . . . . . . . . . . . . . . . . . . . . . . Slashing 4 | . . . . . . . . . . . 4 . . . . . . . . . . . . . . . . . . . . . . Piercing . | . . . . . . . . . . . . . . . . . . . . . . . . . . . . . . . . . . Entropic 20 | . . . . . . . . . . . . . . . . . . . . . . . . . . . . . . . . . 20 Sneak Attacks 2 | . . . . . . . 1 . . 1 . . . . . . . . . . . . . . . . . . . . . . . Combat Hostiles . | . . . . . . . . . . . . . . . . . . . . . . . . . . . . . . . . . . Follow-up Attacks 3 | . . . . . . . . . . . . . . . . . . . . . . . . . . . . . . . . . 3 Damage Inflicted 79042 | . 656 1801 524 . 570 2278 2873 447 501 106 5980 511 . 231 722 . 251 4520 722 52 795 474 5456 3553 1526 1412 639 5020 5512 4387 5463 11089 10971 Guns 8838 | . 656 1276 274 . 377 1776 2236 262 501 . 879 337 . . . . . 264 . . . . . . . . . . . . . . . Cannons 47689 | . . . . . . 346 . . . . . . . 231 722 . 251 2801 303 52 795 474 5446 3553 1526 1412 490 5020 3458 3988 5221 4838 6762 Explosions 19596 | . . 525 250 . 193 156 523 85 . . 4688 174 . . . . . 1455 379 . . . . . . . 149 . 1897 367 242 5877 2636 Melee 1735 | . . . . . . . 114 100 . 106 . . . . . . . . . . . . . . . . . . . . . . 1415 Ramming 10 | . . . . . . . . . . . . . . . . . . . . . . . 10 . . . . . . . . . . Kinetic 7888 | . 656 888 153 . 261 1776 2236 262 501 . 650 337 . . . . . . . . . . . . . . . . . . . . 168 Thermal 47476 | . . 388 121 . 116 346 . . . . . . . 231 722 . 251 3858 303 52 795 474 5446 3553 1526 1412 490 5020 3458 3988 5221 4838 4867 Explosive 18390 | . . 525 250 . 193 156 523 85 . . 4688 174 . . . . . 398 379 . . . . . . . . . 1897 367 242 5877 2636 Electromagnetic 2273 | . . . . . . . . . . . 229 . . . . . . . . . . . . . . . 149 . . . . . 1895 Impact 320 | . . . . . . . 114 100 . 106 . . . . . . . . . . . . . . . . . . . . . . . Slashing 1174 | . . . . . . . . . . . 413 . . . . . . . 40 . . . . . . . . . 157 32 . 374 158 Piercing . | . . . . . . . . . . . . . . . . . . . . . . . . . . . . . . . . . . Entropic 1247 | . . . . . . . . . . . . . . . . . . . . . . . . . . . . . . . . . 1247 Phasic 264 | . . . . . . . . . . . . . . . . . . 264 . . . . . . . . . . . . . . . Highest Corruption 34 | . . 4 4 4 4 . 4 4 4 4 2 2 . . . . . . . . . . 7 8 8 8 6 4 5 . 8 11 34 Average Corruption 5 | . . 4 4 4 4 . 2 4 4 4 2 2 . . . . . . . . . . 5 7 8 5 1 2 4 . 4 3 15 Corruption Purged 21 | . . . . . . . . . . . . . . . . . . . . . . . . . . 16 . 4 . . 1 . . Corruption Blocked 25 | . . . . . . . . . . . . . . . . . . . . . . . . . . . . . 15 6 . . 4 Effects 412 | . . 17 10 4 10 . 39 17 9 1 7 8 . . . . . . . . . . 34 59 18 8 1 21 22 . 22 10 95 Message Errors 94 | . . 7 2 2 2 . 8 3 2 1 2 2 . . . . . . . . . . 7 11 3 . . 4 4 . 4 4 26 Matter Fused 109 | . . 4 6 . 2 . 10 9 3 . . 1 . . . . . . . . . . 8 16 6 2 . 5 8 . 5 2 22 Heat Flow Errors 42 | . . 1 1 . 1 . 3 1 1 . 1 1 . . . . . . . . . . 5 7 2 2 1 2 . . . 1 12 Energy Discharges 39 | . . 2 . . 2 . 3 . . . . 1 . . . . . . . . . . 3 5 2 . . 5 1 . 3 2 10 Parts Rejected 6 | . . . . . 1 . . . . . . . . . . . . . . . . . 1 . . . . . . . . . 4 Data Loss (minor) 58 | . . 3 1 2 . . 10 1 . . 3 1 . . . . . . . . . . 5 8 2 2 . 2 5 . 6 . 7 Data Loss (major) 13 | . . . . . 1 . 1 . 1 . . . . . . . . . . . . . . 5 1 . . 2 1 . 1 . . Misfires 21 | . . . . . . . 1 1 1 . 1 2 . . . . . . . . . . 3 4 . 1 . 1 1 . 1 1 3 Alerts 13 | . . . . . 1 . 1 2 1 . . . . . . . . . . . . . 1 2 1 1 . . . . . . 3 Misdirections 1 | . . . . . . . . . . . . . . . . . . . . . . . . . . . . . . . . . 1 Weapon Failures 16 | . . . . . . . 2 . . . . . . . . . . . . . . . 1 1 1 . . . 2 . 2 . 7 Overload Shots . | . . . . . . . . . . . . . . . . . . . . . . . . . . . . . . . . . . Overflow Damage 2691 | . . . 45 . . 15 103 . . 57 285 . . . 24 . 37 350 . . 22 . 298 133 14 183 1 105 202 26 206 237 348 Projectiles 1702 | . . . . . . 12 . . . . 3 . . . 24 . 37 152 . . 22 . 298 133 14 183 1 105 110 26 206 101 275 Explosions 784 | . . . 45 . . 3 11 . . . 282 . . . . . . 198 . . . . . . . . . . 92 . . 136 17 Melee 205 | . . . . . . . 92 . . 57 . . . . . . . . . . . . . . . . . . . . . . 56 Knockbacks . | . . . . . . . . . . . . . . . . . . . . . . . . . . . . . . . . . . Impact . | . . . . . . . . . . . . . . . . . . . . . . . . . . . . . . . . . . Kinetic . | . . . . . . . . . . . . . . . . . . . . . . . . . . . . . . . . . . Secondary . | . . . . . . . . . . . . . . . . . . . . . . . . . . . . . . . . . . Self-Inflicted Damage 427 | . . 42 24 . . . . . . . 68 . . . . . . 144 . . . . . . . . 75 . . . 74 . . Shots 11 | . . 2 2 . . . . . . . 2 . . . . . . 3 . . . . . . . . 1 . . . 1 . . Rammed . | . . . . . . . . . . . . . . . . . . . . . . . . . . . . . . . . . . Targets Rammed 2 | . . . . . . . . . . . . . . . . . . . . . . . 2 . . . . . . . . . . Kicked 2 | . . . . . . . . . . . . . . . . . . . . . . . 2 . . . . . . . . . . Crushed . | . . . . . . . . . . . . . . . . . . . . . . . . . . . . . . . . . . Highest Temperature 300 | . 4 214 140 . 198 135 243 257 185 . 162 228 64 . . . . 13 . . . 17 148 167 121 131 108 154 . . . 80 300 Average Temperature 55 | . 1 48 80 . 34 43 54 56 36 . 35 83 33 . . . . 13 . . . 11 65 67 71 64 108 76 . . . 54 111 Received Heat Transfer 5851 | . 240 348 . . 225 378 434 40 151 . 490 30 . 36 . . 15 483 66 . 141 146 604 108 28 18 9 170 255 69 445 347 575 Siege Activations 30 | . . . . . . . . . . . . . . . . . . . . . . . . . 1 . . 6 3 2 4 6 8 Total Turns 707 | . . . . . . . . . . . . . . . . . . . . . . . . . 5 . . 99 105 44 70 191 193 Longest Duration 75 | . . . . . . . . . . . . . . . . . . . . . . . . . 5 . . 36 69 36 27 75 50 Robots Corrupted 11 | . . . . . . . . . . . 2 . . . . . . . . . . . . . . . . . . . . . 9 Combat Hostiles 11 | . . . . . . . . . . . 2 . . . . . . . . . . . . . . . . . . . . . 9 Parts Fried 16 | . . . . . . . . . . . . . . . . . . . . . . . . . . . . . . 1 . . 15 Impact Corruptions 2 | . . . . . . . 1 . . 1 . . . . . . . . . . . . . . . . . . . . . . . Robots Melted 3 | . . . . . . 2 . . . . . . . . . . . . . . . . 1 . . . . . . . . . . Combat Hostiles 2 | . . . . . . 1 . . . . . . . . . . . . . . . . 1 . . . . . . . . . . Parts Melted 33 | . . 3 . . . 5 . . . . . . . . . . 1 1 . . 1 . 5 3 . . . 2 2 4 . 3 3 Heat Transferred 27323 | . . 1221 296 . 296 629 . . . . . . . 125 400 . 125 2200 175 25 437 275 2850 2000 812 750 250 2600 1875 2175 2784 2625 2398 Parts Sabotaged . | . . . . . . . . . . . . . . . . . . . . . . . . . . . . . . . . . . Parts Stolen . | . . . . . . . . . . . . . . . . . . . . . . . . . . . . . . . . . . Parts Stripped . | . . . . . . . . . . . . . . . . . . . . . . . . . . . . . . . . . . Power Chain Reactions . | . . . . . . . . . . . . . . . . . . . . . . . . . . . . . . . . . . Missiles Intercepted . | . . . . . . . . . . . . . . . . . . . . . . . . . . . . . . . . . . Alert | -11 -10 -9 -9 -9 -8 -8 -7 -7 -7 -7 -7 -6 -6 -6 -6 -6 -5 -5 -5 -5 -5 -4 -4 -4 -4 -4 -4 -3 -3 -2 -2 -1 -1 ------- Run | Scr Mat Mat Min Exi Min Mat Fac Low Low Zio Dee Pro Fac Low Low Dat Pro Fac Upp Upp War Pro Fac Ext Cet Arc Hub Res Tes Res Qua Acc Com Peak Influence 1966 | . 376 838 447 . 111 316 538 . . . . . 52 . . . . 588 . . . . 591 371 736 541 492 774 1035 795 1080 1966 1947 Initial 1246 | . . 92 273 . . 42 56 . . . . . 44 . . . . . . . . . . 245 86 294 122 258 435 438 447 648 1246 Average 489 | . 168 573 405 . 33 128 211 . . . . . 39 . . . . 350 . . . . 344 171 403 459 97 469 711 413 741 1152 1615 Maximum Alert Level 5 | . 1 3 2 . . 1 2 . . . . . . . . . . 2 . . . . 2 1 3 2 2 3 3 3 3 5 5 Low Security (%) 28 | 100 51 4 . . 100 77 41 . . . . . 100 . . . . 18 . . . . 29 78 8 . 87 . . 8 . . . Level 1 22 | . 48 9 80 . . 22 48 . . . . . . . . . . 47 . . . . 8 21 38 34 5 37 . 42 . . . Level 2 25 | . . 63 20 . . . 10 . . . . . . . . . . 33 . . . . 62 . 52 65 6 52 41 40 36 14 . Level 3 11 | . . 22 . . . . . . . . . . . . . . . . . . . . . . 1 . . 10 58 8 62 40 . Level 4 4 | . . . . . . . . . . . . . . . . . . . . . . . . . . . . . . . . 24 38 Level 5 6 | . . . . . . . . . . . . . . . . . . . . . . . . . . . . . . . . 20 61 High Security . | . . . . . . . . . . . . . . . . . . . . . . . . . . . . . . . . . . Max Security . | . . . . . . . . . . . . . . . . . . . . . . . . . . . . . . . . . . Squads Dispatched 88 | . 5 3 . . . 3 9 . 1 . . . 1 . . . . 4 . . . . 8 . 1 . 1 7 9 . 11 10 15 Investigation 13 | . 3 1 . . . 2 . . . . . . . . . . . . . . . . 1 . 1 . . . 1 . . 2 2 Extermination 26 | . . . . . . . 3 . . . . . 1 . . . . 1 . . . . 3 . . . 1 5 4 . 3 2 3 Reinforcement 14 | . 2 1 . . . 1 2 . . . . . . . . . . 3 . . . . . . . . . 1 1 . 2 1 . Assault 26 | . . 1 . . . . 1 . 1 . . . . . . . . . . . . . 1 . . . . 1 3 . 3 5 10 Garrison 9 | . . . . . . . 3 . . . . . . . . . . . . . . . 3 . . . . . . . 3 . . Intercept . | . . . . . . . . . . . . . . . . . . . . . . . . . . . . . . . . . . Searches Triggered . | . . . . . . . . . . . . . . . . . . . . . . . . . . . . . . . . . . Data Miner Redirects 16 | . . . . . . . . . . . . . . . . . . . . . . . 1 . . . . 1 2 . 2 3 7 Construction Impeded 2 | . . . . . . . . . . . . . . . . . . 2 . . . . . . . . . . . . . . . Haulers Reinforced 4 | . . . . . . . . . . . . . . . . . . 1 . . . . . . . . . 1 . . 1 1 . Active Scanning Responses . | . . . . . . . . . . . . . . . . . . . . . . . . . . . . . . . . . . Cargo Convoy Interrupts . | . . . . . . . . . . . . . . . . . . . . . . . . . . . . . . . . . . Stealth | -11 -10 -9 -9 -9 -8 -8 -7 -7 -7 -7 -7 -6 -6 -6 -6 -6 -5 -5 -5 -5 -5 -4 -4 -4 -4 -4 -4 -3 -3 -2 -2 -1 -1 --------- Run | Scr Mat Mat Min Exi Min Mat Fac Low Low Zio Dee Pro Fac Low Low Dat Pro Fac Upp Upp War Pro Fac Ext Cet Arc Hub Res Tes Res Qua Acc Com Distress Signals 57 | . 1 2 . . . 3 2 . . . . . . . . . . . . . 3 . 3 1 2 . . 2 2 7 1 3 25 Communications Jammed 219 | . . . . . . . . . . . . . . . . . . . . . . . . . . . 3 33 5 . 3 99 76 Distress Signals 218 | . . . . . . . . . . . . . . . . . . . . . . . . . . . 3 33 4 . 3 99 76 Times Spotted 792 | . 19 37 19 . 6 39 37 5 8 . 60 9 . 4 16 . 5 25 9 . 30 2 48 24 18 16 10 41 39 44 47 66 109 Peak Tracking Total 37 | . 4 7 8 . 3 4 7 2 11 . 37 4 1 4 4 . 4 7 6 . 12 2 8 5 5 2 4 6 7 7 9 11 13 Tactical Retreats 40 | . . 3 . . 1 1 1 1 2 . 2 1 . 1 1 . 1 1 1 . 2 . 2 1 . . . 1 . 1 1 5 10 Traps | -11 -10 -9 -9 -9 -8 -8 -7 -7 -7 -7 -7 -6 -6 -6 -6 -6 -5 -5 -5 -5 -5 -4 -4 -4 -4 -4 -4 -3 -3 -2 -2 -1 -1 ------- Run | Scr Mat Mat Min Exi Min Mat Fac Low Low Zio Dee Pro Fac Low Low Dat Pro Fac Upp Upp War Pro Fac Ext Cet Arc Hub Res Tes Res Qua Acc Com Traps Triggered 17 | . 1 . . . . . 2 . . . . . . . . . . . . . . . 1 4 . . . 1 3 . 1 . 4 Indirectly . | . . . . . . . . . . . . . . . . . . . . . . . . . . . . . . . . . . Trap Hack Attempts . | . . . . . . . . . . . . . . . . . . . . . . . . . . . . . . . . . . Triggered . | . . . . . . . . . . . . . . . . . . . . . . . . . . . . . . . . . . Disarmed . | . . . . . . . . . . . . . . . . . . . . . . . . . . . . . . . . . . Reprogrammed . | . . . . . . . . . . . . . . . . . . . . . . . . . . . . . . . . . . Reused . | . . . . . . . . . . . . . . . . . . . . . . . . . . . . . . . . . . Traps Extracted . | . . . . . . . . . . . . . . . . . . . . . . . . . . . . . . . . . . Installed . | . . . . . . . . . . . . . . . . . . . . . . . . . . . . . . . . . . Triggered 13 | . . . . . . . . . . . . . . . . . . . 2 . 10 1 . . . . . . . . . . . Exploded 2 | . . . . . . . . . . . 2 . . . . . . . . . . . . . . . . . . . . . . Machines | -11 -10 -9 -9 -9 -8 -8 -7 -7 -7 -7 -7 -6 -6 -6 -6 -6 -5 -5 -5 -5 -5 -4 -4 -4 -4 -4 -4 -3 -3 -2 -2 -1 -1 ---------- Run | Scr Mat Mat Min Exi Min Mat Fac Low Low Zio Dee Pro Fac Low Low Dat Pro Fac Upp Upp War Pro Fac Ext Cet Arc Hub Res Tes Res Qua Acc Com Machines Disabled 57 | . . 4 1 . . 1 2 . . . 2 . . . . . . 6 1 . . . . 2 1 3 15 . 7 3 7 1 1 Max in Single Turn 10 | . . 1 1 . . 1 1 . . . 1 . . . . . . 4 1 . . . . 1 1 1 10 . 1 1 1 1 1 Garrison Access 2 | . . . . . . . 1 . . . . . . . . . . . . . . . . . . . . . . 1 . . . Network Hub 1 | . . . . . . . . . . . . . . . . . . . . . . . . . . . 1 . . . . . . Machines Sabotaged . | . . . . . . . . . . . . . . . . . . . . . . . . . . . . . . . . . . Garrisons Compromised . | . . . . . . . . . . . . . . . . . . . . . . . . . . . . . . . . . . Overloaded Fab Kills 2 | . . . . . . . . . . . . . . . . . . . . . . . . . . . . . . . . 2 . Hacking | -11 -10 -9 -9 -9 -8 -8 -7 -7 -7 -7 -7 -6 -6 -6 -6 -6 -5 -5 -5 -5 -5 -4 -4 -4 -4 -4 -4 -3 -3 -2 -2 -1 -1 --------- Run | Scr Mat Mat Min Exi Min Mat Fac Low Low Zio Dee Pro Fac Low Low Dat Pro Fac Upp Upp War Pro Fac Ext Cet Arc Hub Res Tes Res Qua Acc Com Machines Accessed 109 | . 6 5 . 1 . 10 12 . . . . . 5 1 . 3 . 2 1 1 2 . 9 6 1 . 3 8 9 1 8 3 12 Terminals 70 | . 5 3 . . . 7 7 . . . . . 3 . . . . 1 1 . . . 7 5 1 . 3 4 5 . 5 2 11 Fabricators 4 | . . . . . . . . . . . . . . . . . . . . . . . 1 . . . . 1 1 . . 1 . Repair Stations 9 | . . . . . . 1 1 . . . . . . . . . . 1 . . . . 1 . . . . . 2 . 2 . 1 Recycling Units 10 | . 1 1 . . . 1 3 . . . . . 1 . . . . . . . . . . 1 . . . 2 . . . . . Scanalyzers 4 | . . 1 . . . 1 . . . . . . . . . . . . . . . . . . . . . . . 1 1 . . Garrison Access 4 | . . . . . . . 1 . . . . . 1 . . . . . . . . . . . . . . 1 1 . . . . Total Hacks 327 | . 15 16 . 1 . 36 30 . . . . . 16 1 . 22 . 6 5 1 5 . 26 17 2 . 9 30 23 4 25 7 30 Successful 153 | . 4 5 . 1 . 23 17 . . . . . 7 1 . 22 . 3 5 1 5 . 10 5 . . 3 11 6 1 10 2 11 Failed 172 | . 10 11 . . . 12 13 . . . . . 9 . . . . 3 . . . . 16 12 2 . 6 19 17 3 15 5 19 Catastrophic 35 | . 1 . . . . . 3 . . . . . 2 . . . . 1 . . . . 1 2 1 . 2 4 7 1 4 . 6 Database Lockouts 2 | . 1 . . . . 1 . . . . . . . . . . . . . . . . . . . . . . . . . . . Manual 126 | . 13 12 . . . 14 16 . . . . . 9 . . . . 1 . . 1 . 14 10 1 . 2 14 8 . 4 2 5 Terminals 216 | . 14 12 . . . 23 22 . . . . . 12 . . . . 1 5 . . . 22 14 2 . 9 17 15 . 16 5 27 Fabricators 9 | . . . . . . . . . . . . . . . . . . . . . . . 2 . . . . 4 1 . . 2 . Repair Stations 28 | . . . . . . 7 4 . . . . . . . . . . 5 . . . . 2 . . . . . 3 . 4 . 3 Recycling Units 20 | . 1 2 . . . 2 3 . . . . . 2 . . . . . . . . . . 3 . . . 7 . . . . . Scanalyzers 15 | . . 2 . . . 4 . . . . . . . . . . . . . . . . . . . . . . . 4 5 . . Garrison Access 9 | . . . . . . . 1 . . . . . 2 . . . . . . . . . . . . . . 2 4 . . . . Terminal Hacks 89 | . 3 2 . 1 . 11 5 . . . . . 5 1 . 22 . . 5 1 5 . 5 3 . . 3 5 2 . 3 1 6 Record 8 | . . . . 1 . . . . . . . . . . . 2 . . 5 . . . . . . . . . . . . . . Part Schematic 13 | . . 2 . . . . . . . . . . . . . 11 . . . . . . . . . . . . . . . . . Robot Schematic 7 | . 1 . . . . . . . . . . . . . . 6 . . . . . . . . . . . . . . . . . Robot Analysis 3 | . 1 . . . . 1 . . . . . . . . . . . . . . . . . . . . . . 1 . . . . Prototype ID Bank 10 | . . . . . . 3 . . . . . . . . . 3 . . . . 4 . . . . . . . . . . . . Open Door 4 | . . . . . . . . . . . . . . 1 . . . . . 1 1 . . . . . . . . . . . 1 Branch Access Points 6 | . . . . . . 1 1 . . . . . 1 . . . . . . . . . 1 . . . 1 1 . . . . . Emergency Access Points 1 | . . . . . . . . . . . . . . . . . . . . . . . . . . . . . . . . . 1 Machine Index 1 | . . . . . . . . . . . . . . . . . . . . . . . . . . . . . . . . . 1 Terminal Index 5 | . . . . . . . 1 . . . . . 1 . . . . . . . . . 1 . . . . . . . 1 1 . Garrison Index 1 | . . . . . . . . . . . . . 1 . . . . . . . . . . . . . . . . . . . . Alert Level 4 | . . . . . . . . . . . . . . . . . . . . . . . 1 1 . . . 1 . . 1 . . Unreport Threat 8 | . . . . . . 3 . . . . . . . . . . . . . . . . 1 1 . . 2 . 1 . . . . Locate Traps 10 | . . . . . . 2 2 . . . . . 1 . . . . . . . . . . 1 . . . 3 . . . . 1 Surveillance Status 1 | . 1 . . . . . . . . . . . . . . . . . . . . . . . . . . . . . . . . Patrol Status 1 | . . . . . . . . . . . . . . . . . . . . . . . . . . . . . . . . . 1 Hauler Manifests 2 | . . . . . . 1 . . . . . . 1 . . . . . . . . . . . . . . . . . . . . Zone Layout 3 | . . . . . . . 1 . . . . . . . . . . . . . . . 1 . . . . . . . 1 . . Disengage Seal 1 | . . . . . . . . . . . . . . . . . . . . . . . . . . . . . . . . . 1 Fabricator Hacks 1 | . . . . . . . . . . . . . . . . . . . . . . . . . . . . 1 . . . . . Build 1 | . . . . . . . . . . . . . . . . . . . . . . . . . . . . 1 . . . . . Repair Station Hacks 19 | . . . . . . 4 4 . . . . . . . . . . 3 . . . . 2 . . . . . 2 . 2 . 2 Scan Component 10 | . . . . . . 2 2 . . . . . . . . . . 2 . . . . 1 . . . . . 1 . 1 . 1 Repair 9 | . . . . . . 2 2 . . . . . . . . . . 1 . . . . 1 . . . . . 1 . 1 . 1 Recycling Unit Hacks . | . . . . . . . . . . . . . . . . . . . . . . . . . . . . . . . . . . Scanalyzer 11 | . . 2 . . . 4 . . . . . . . . . . . . . . . . . . . . . . . 1 4 . . Insert Component 8 | . . 1 . . . 2 . . . . . . . . . . . . . . . . . . . . . . . 1 4 . . Analyze 3 | . . 1 . . . 2 . . . . . . . . . . . . . . . . . . . . . . . . . . . Garrison Access Hacks 1 | . . . . . . . 1 . . . . . . . . . . . . . . . . . . . . . . . . . . Seal Access 1 | . . . . . . . 1 . . . . . . . . . . . . . . . . . . . . . . . . . . Unauthorized Hacks 32 | . 1 1 . . . 4 7 . . . . . 2 . . . . . . . . . 3 2 . . . 5 2 . 1 1 3 Terminals 18 | . . . . . . 3 4 . . . . . 1 . . . . . . . . . 2 . . . . 2 2 . 1 . 3 Track 1 | . . . . . . . 1 . . . . . . . . . . . . . . . . . . . . . . . . . . Assimilate 4 | . . . . . . 1 1 . . . . . . . . . . . . . . . 1 . . . . . 1 . . . . Botnet 10 | . . . . . . 1 1 . . . . . . . . . . . . . . . 1 . . . . 2 1 . 1 . 3 Operators 3 | . . . . . . 1 1 . . . . . 1 . . . . . . . . . . . . . . . . . . . . Fabricators 2 | . . . . . . . . . . . . . . . . . . . . . . . 1 . . . . . . . . 1 . Haulers 1 | . . . . . . . . . . . . . . . . . . . . . . . 1 . . . . . . . . . . Overload 1 | . . . . . . . . . . . . . . . . . . . . . . . . . . . . . . . . 1 . Repair Stations . | . . . . . . . . . . . . . . . . . . . . . . . . . . . . . . . . . . Recycling Units 12 | . 1 1 . . . 1 3 . . . . . 1 . . . . . . . . . . 2 . . . 3 . . . . . Recyclers 5 | . . . . . . . 1 . . . . . 1 . . . . . . . . . . 1 . . . 2 . . . . . Mask 4 | . . . . . . . 2 . . . . . . . . . . . . . . . . 1 . . . 1 . . . . . Tunnel 3 | . 1 1 . . . 1 . . . . . . . . . . . . . . . . . . . . . . . . . . . Scanalyzers . | . . . . . . . . . . . . . . . . . . . . . . . . . . . . . . . . . . Garrison Access . | . . . . . . . . . . . . . . . . . . . . . . . . . . . . . . . . . . Data Cores Recovered 3 | . . . . . . . . . . . . . . . . . . . . . . . . 1 . . 1 . . . 1 . . Used . | . . . . . . . . . . . . . . . . . . . . . . . . . . . . . . . . . . Hacking Detections 89 | . 5 5 . . . 9 10 . . . . . 5 . . . . 2 1 . . . 7 5 1 . 3 7 8 1 6 3 11 Full Trace Events 9 | . 2 . . . . 1 . . . . . . . . . . . . 1 . . . 1 . 1 . . . 1 . . 1 1 Feedback Events . | . . . . . . . . . . . . . . . . . . . . . . . . . . . . . . . . . . Feedback Blocked . | . . . . . . . . . . . . . . . . . . . . . . . . . . . . . . . . . . Robot Schematics Acquired 7 | . 1 . . . . . . . . . . . . . . 6 . . . . . . . . . . . . . . . . . Robots Built . | . . . . . . . . . . . . . . . . . . . . . . . . . . . . . . . . . . Authchips . | . . . . . . . . . . . . . . . . . . . . . . . . . . . . . . . . . . Time . | . . . . . . . . . . . . . . . . . . . . . . . . . . . . . . . . . . Total Robot Build Rating . | . . . . . . . . . . . . . . . . . . . . . . . . . . . . . . . . . . Part Schematics Acquired 16 | . . 3 . . . 2 . . . . . . . . . 11 . . . . . . . . . . . . . . . . . Parts Built 2 | . . . . . . . . . . . . . . . . . . . . . . . . . . . . 2 . . . . . Authchips . | . . . . . . . . . . . . . . . . . . . . . . . . . . . . . . . . . . Time 64 | . . . . . . . . . . . . . . . . . . . . . . . . . . . . 64 . . . . . Total Part Build Rating 16 | . . . . . . . . . . . . . . . . . . . . . . . . . . . . 16 . . . . . Parts Repaired 9 | . . . . . . 2 2 . . . . . . . . . . 1 . . . . 1 . . . . . 1 . 1 . 1 Time 368 | . . . . . . 64 70 . . . . . . . . . . 22 . . . . 44 . . . . . 36 . 108 . 24 Parts Recycled . | . . . . . . . . . . . . . . . . . . . . . . . . . . . . . . . . . . Recycled Matter . | . . . . . . . . . . . . . . . . . . . . . . . . . . . . . . . . . . Retrieved Matter . | . . . . . . . . . . . . . . . . . . . . . . . . . . . . . . . . . . Retrieved Components . | . . . . . . . . . . . . . . . . . . . . . . . . . . . . . . . . . . Parts Scanalyzed 3 | . . 1 . . . 2 . . . . . . . . . . . . . . . . . . . . . . . . . . . Part Schematics Acquired 3 | . . 1 . . . 2 . . . . . . . . . . . . . . . . . . . . . . . . . . . Parts Damaged . | . . . . . . . . . . . . . . . . . . . . . . . . . . . . . . . . . . Bothacking | -11 -10 -9 -9 -9 -8 -8 -7 -7 -7 -7 -7 -6 -6 -6 -6 -6 -5 -5 -5 -5 -5 -4 -4 -4 -4 -4 -4 -3 -3 -2 -2 -1 -1 ------------ Run | Scr Mat Mat Min Exi Min Mat Fac Low Low Zio Dee Pro Fac Low Low Dat Pro Fac Upp Upp War Pro Fac Ext Cet Arc Hub Res Tes Res Qua Acc Com Used RIF Installer . | . . . . . . . . . . . . . . . . . . . . . . . . . . . . . . . . . . Robots Hacked 1 | . . . . . . . . . . . . . . . . . . . . . . . . . . . . . . . . . 1 Non-combat . | . . . . . . . . . . . . . . . . . . . . . . . . . . . . . . . . . . Combat . | . . . . . . . . . . . . . . . . . . . . . . . . . . . . . . . . . . Robot Hacks Applied . | . . . . . . . . . . . . . . . . . . . . . . . . . . . . . . . . . . Manual 1 | . . . . . . . . . . . . . . . . . . . . . . . . . . . . . . . . . 1 Relay Couplers Released 15 | . . . . . . . . . . . . . . . . . . . . . . . 4 . . . . . . 11 . . . Programmers 15 | . . . . . . . . . . . . . . . . . . . . . . . 4 . . . . . . 11 . . . Fabnet Peak Effective % . | . . . . . . . . . . . . . . . . . . . . . . . . . . . . . . . . . . Robots Rewired 7 | . . . . . . . . . 2 . . . . . . . . . . . 5 . . . . . . . . . . . . Allies Hacked . | . . . . . . . . . . . . . . . . . . . . . . . . . . . . . . . . . . Hacks Repelled . | . . . . . . . . . . . . . . . . . . . . . . . . . . . . . . . . . . Allies | -11 -10 -9 -9 -9 -8 -8 -7 -7 -7 -7 -7 -6 -6 -6 -6 -6 -5 -5 -5 -5 -5 -4 -4 -4 -4 -4 -4 -3 -3 -2 -2 -1 -1 -------- Run | Scr Mat Mat Min Exi Min Mat Fac Low Low Zio Dee Pro Fac Low Low Dat Pro Fac Upp Upp War Pro Fac Ext Cet Arc Hub Res Tes Res Qua Acc Com Total Allies 28 | . . . . . . 1 1 . 2 . . . . . . . 1 . . . 5 . . 12 5 . . . 1 . . . . Largest Group 7 | . . . . . . 1 1 . 2 2 1 . . . . . 1 . . . 5 . . 7 6 3 1 . 1 . . . . Highest-Rated Group 639 | . . . . . . 10 26 . 46 46 30 . . . . . 96 . . . 245 . . 238 639 344 96 . 45 . . . . Highest-Rated Ally 159 | . . . . . . 10 26 . 30 30 30 . . . . . 96 . . . 68 . . 159 159 152 96 . 45 . . . . Total Orders 5 | . . . . . . . 1 . . . 1 . . . . . . . . . . . 1 . 1 . . . 1 . . . . STAY 2 | . . . . . . . 1 . . . 1 . . . . . . . . . . . . . . . . . . . . . . GUARD 1 | . . . . . . . . . . . . . . . . . . . . . . . . . 1 . . . . . . . . EXPLORE 2 | . . . . . . . . . . . . . . . . . . . . . . . 1 . . . . . 1 . . . . Ally Attacks 180 | . . . . . . . . . . . . . . . . . 9 . . . 37 . . 33 77 18 6 . . . . . . Total Damage 7588 | . . . . . . . . . . . . . . . . . 240 . . . 1808 . . 1172 3617 566 185 . . . . . . Kills 40 | . . . . . . . . . . . . . . . . . 3 . . . 10 . . 6 17 3 1 . . . . . . Allies Corrupted 3 | . . . . . . . . . . 1 . . . . . . . . . . . . . 2 . . . . . . . . . Allies Melted 4 | . . . . . . . . . . . . . . . . . . . . . . . . . . . . . . 4 . . . Intel | -11 -10 -9 -9 -9 -8 -8 -7 -7 -7 -7 -7 -6 -6 -6 -6 -6 -5 -5 -5 -5 -5 -4 -4 -4 -4 -4 -4 -3 -3 -2 -2 -1 -1 ------- Run | Scr Mat Mat Min Exi Min Mat Fac Low Low Zio Dee Pro Fac Low Low Dat Pro Fac Upp Upp War Pro Fac Ext Cet Arc Hub Res Tes Res Qua Acc Com Robot Analysis Total 3 | . 1 . . . . 1 . . . . . . . . . . . . . . . . . . . . . . 1 . . . . Derelict Logs Recovered 10 | . . . 1 . . . . . . 2 . 2 . 1 . . 2 . 1 1 . . . . . . . . . . . . . Drone Launches 4 | . . . . . . . . . . . . . . . . . . . . . . . 2 . . . . . 2 . . . . Drone Recoveries . | . . . . . . . . . . . . . . . . . . . . . . . . . . . . . . . . . . Exploration | -11 -10 -9 -9 -9 -8 -8 -7 -7 -7 -7 -7 -6 -6 -6 -6 -6 -5 -5 -5 -5 -5 -4 -4 -4 -4 -4 -4 -3 -3 -2 -2 -1 -1 ------------- Run | Scr Mat Mat Min Exi Min Mat Fac Low Low Zio Dee Pro Fac Low Low Dat Pro Fac Upp Upp War Pro Fac Ext Cet Arc Hub Res Tes Res Qua Acc Com Turns Passed 34111 | 25 514 874 335 259 347 1838 2426 784 518 1627 1843 588 510 834 579 185 581 1413 522 566 1496 478 1914 1952 580 558 602 1558 1252 1787 1537 1086 2143 Spaces Moved 16458 | 38 441 540 160 161 174 936 1237 457 269 981 900 318 334 316 320 80 300 465 240 295 717 192 753 964 215 195 325 630 537 969 725 447 827 Core 676 | 38 391 247 . . . . . . . . . . . . . . . . . . . . . . . . . . . . . . . Treads 10023 | . 50 247 160 161 174 936 1237 457 269 981 659 . . . . . . 90 . . 77 . . . 7 86 325 630 537 969 725 447 799 Legs 2526 | . . . . . . . . . . . 115 . . . . . . 228 240 295 640 192 342 129 208 109 . . . . . . 28 Wheels 3233 | . . 46 . . . . . . . . 126 318 334 316 320 80 300 147 . . . . 411 835 . . . . . . . . . Hover . | . . . . . . . . . . . . . . . . . . . . . . . . . . . . . . . . . . Flight . | . . . . . . . . . . . . . . . . . . . . . . . . . . . . . . . . . . Fastest Speed 50 | 50 50 50 160 160 160 160 160 160 160 160 115 115 145 145 160 145 160 145 180 180 180 180 170 170 210 160 160 160 160 155 150 158 150 Average Speed 161 | 50 81 106 160 160 160 161 161 160 160 160 163 129 145 155 160 159 160 190 191 180 191 180 179 178 210 208 160 160 161 157 158 160 163 Slowest Speed 305 | 50 160 240 240 160 160 163 240 240 240 160 240 130 145 160 160 160 160 240 210 180 240 210 250 270 240 240 160 160 240 160 163 238 305 Overloaded Moves . | . . . . . . . . . . . . . . . . . . . . . . . . . . . . . . . . . . Propulsion Burnouts . | . . . . . . . . . . . . . . . . . . . . . . . . . . . . . . . . . . Robots Hopped . | . . . . . . . . . . . . . . . . . . . . . . . . . . . . . . . . . . Cave-ins Triggered 1 | . . . . . . . . . . . . . . . . . . . . . . . . . . . . . . . . 1 . Exploration Rate (%) 49 | 3 59 51 26 50 48 70 33 55 48 83 80 58 11 51 51 69 37 14 46 49 86 33 20 90 67 78 40 18 86 35 75 17 32 Regions Visited 33 Branch Regions 23 Pre-discovered Areas 8 | . 1 1 . 1 . 1 . . . 3 . . . . . 1 . . . . . . . . . . . . . . . . . Known Exits Taken 13 | . . . . . . . 1 . . . . 1 1 . . . 1 1 1 1 1 1 1 . . . . 1 . 1 1 . . Unknown Exits Taken 20 | 1 1 1 1 1 1 1 . 1 1 1 1 . . 1 1 1 . . . . . . . 1 1 1 1 . 1 . . 1 . Scrap Searched 19 | . . . 1 . 1 . . 1 2 2 . 1 . 1 3 . 5 . . 1 . 1 . . . . . . . . . . . Spaces Dug 248 | . . . . . . . 12 1 . 1 10 5 8 5 6 . 10 6 6 3 5 18 19 2 . . 9 28 25 15 14 10 30 Terrain Destroyed 1061 | . . 28 20 . 22 8 34 9 . 1 42 23 8 9 14 . 11 76 20 4 8 24 34 11 7 14 177 43 60 35 94 124 101 Melee 6 | . . . . . . . 3 1 . 1 . . . . . . . . . . . . . . . . . . . . . . 1 Projectile 421 | . . . . . . . . . . . 10 5 8 9 14 . 11 21 12 4 8 24 34 11 7 14 17 43 38 35 28 24 44 AOE 634 | . . 28 20 . 22 8 31 8 . . 32 18 . . . . . 55 8 . . . . . . . 160 . 22 . 66 100 56 Terrain Rammed . | . . . . . . . . . . . . . . . . . . . . . . . . . . . . . . . . . . Walls Destroyed . | . . . . . . . . . . . . . . . . . . . . . . . . . . . . . . . . . . Machines Disabled . | . . . . . . . . . . . . . . . . . . . . . . . . . . . . . . . . . . Actions | -11 -10 -9 -9 -9 -8 -8 -7 -7 -7 -7 -7 -6 -6 -6 -6 -6 -5 -5 -5 -5 -5 -4 -4 -4 -4 -4 -4 -3 -3 -2 -2 -1 -1 --------- Run | Scr Mat Mat Min Exi Min Mat Fac Low Low Zio Dee Pro Fac Low Low Dat Pro Fac Upp Upp War Pro Fac Ext Cet Arc Hub Res Tes Res Qua Acc Com Total 21662 | 42 519 700 197 163 208 1162 1519 484 327 1014 1186 472 353 647 358 138 388 901 284 326 810 288 1163 1116 300 300 376 1019 800 1105 961 668 1368 Wait 2596 | . 21 16 4 . 2 67 102 4 . . 101 124 2 308 4 57 63 324 16 26 16 66 241 50 40 51 23 262 133 22 104 90 257 Move 16424 | 37 440 539 159 160 173 935 1236 456 268 980 899 317 333 315 319 79 299 464 239 294 716 191 752 963 214 194 324 629 536 968 724 446 826 Hop . | . . . . . . . . . . . . . . . . . . . . . . . . . . . . . . . . . . Pick Up 191 | 2 6 22 2 3 4 17 19 . 3 4 14 2 3 2 2 . 2 9 . . 5 . 10 6 9 4 1 5 4 6 8 3 14 Fast Attach 155 | 3 4 11 . . 1 10 10 1 3 4 20 . 1 . 1 . 1 6 . . 3 . 11 3 1 5 1 5 12 7 8 9 14 Attach 107 | . 1 4 5 . 4 6 9 2 2 1 17 3 1 1 . . 1 6 2 . 2 . 3 . . 3 1 3 2 3 2 2 21 Detach 123 | . . 4 . . . 6 1 1 . . 16 2 1 3 1 2 3 8 5 2 1 . 7 7 1 7 1 . 7 6 8 7 16 Swap 143 | . . 12 4 . 5 10 23 7 6 5 12 3 1 . . . . 1 . . 2 3 11 2 3 . 1 8 1 6 1 8 8 Drop 231 | . 3 14 . . 1 25 22 . 1 8 27 2 3 4 1 . 3 9 . . 7 . 15 9 8 4 2 8 14 10 11 7 13 Fire 1567 | . 44 78 23 . 18 86 93 11 20 . 73 19 8 14 30 . 16 74 22 4 21 28 111 60 24 32 22 99 91 77 95 96 178 Melee 43 | . . . . . . . 4 2 . 12 4 . . . . . . . . . . . . . . . . . . . . . 21 Ram . | . . . . . . . . . . . . . . . . . . . . . . . . . . . . . . . . . . Kick 2 | . . . . . . . . . . . . . . . . . . . . . . . 2 . . . . . . . . . . Crush . | . . . . . . . . . . . . . . . . . . . . . . . . . . . . . . . . . . Escape Stasis 16 | . . . . . . . . . . . . . . . . . . . . . . . . 16 . . . . . . . . . Rewire 64 | . . . . . . . . . 24 . 3 . . . . . . . . . 37 . . . . . . . . . . . . Trap . | . . . . . . . . . . . . . . . . . . . . . . . . . . . . . . . . . . Miscellaneous . | . . . . . . . . . . . . . . . . . . . . . . . . . . . . . . . . . . Route ------- -11/Scrapyard -10/Materials (discovered 2 exits: *Mat x2) -9/Materials (discovered 3 exits: [*Min x2] / [*Sto]) -9/Mines -9/Exiles -8/Mines -8/Materials (discovered 2 exits: *Fac x2) -7/Factory (discovered 2 exits: *Low x2) -7/Lower Caves -7/Lower Caves -7/Zion -7/Deep Caves -6/Proximity Caves -6/Factory (discovered 3 exits: Fac / *Low x2) -6/Lower Caves -6/Lower Caves (discovered 2 exits: *Fac / *Dat) -6/Data Miner -5/Proximity Caves -5/Factory -5/Upper Caves -5/Upper Caves -5/Warlord -4/Proximity Caves -4/Factory (discovered 5 exits: Upp x2 / *Ext x2 / Arm) -4/Extension (discovered 2 exits: *Res / *Cet) -4/Cetus (discovered 2 exits: *Res / [*Arc]) -4/Archives (discovered 2 exits: *Hub x2) -4/Hub_04(d) (discovered 2 exits: *Res x2) -3/Research (discovered 3 exits: *Res / *Tes x2) -3/Testing -2/Research (discovered 3 exits: *Acc x2 / *Qua) -2/Quarantine -1/Access -1/Command (discovered 2 exits: [*Sur x2]) 0b11 Command History --------- Turn | Location | Event 10 | -11/Scrapyard | Discovered new exit (range 16) 26 | -11/Scrapyard | Entered Materials 74 | -10/Materials | Discovered new exit (range 14) 156 | -10/Materials | Discovered new exit (range 3) 302 | -10/Materials | Build established: Mutant 330 | -10/Materials | Central database locked down 540 | -10/Materials | Entered another Materials area 540 | -9/Materials | Evolved 2 slots: Propulsion x1, Utility x1 730 | -9/Materials | Discovered new exit (range 18) 760 | -9/Materials | Discovered new exit (range 10) 922 | -9/Materials | Destroyed 9 combat bots 982 | -9/Materials | Build established: Scavenger-Mutant 1137 | -9/Materials | Discovered new exit (range 18) 1340 | -9/Materials | First assault squad dispatched 1414 | -9/Materials | Entered Mines 1439 | -9/Mines | Assembled infested the area 1442 | -9/Mines | Met a Derelict bent on vengeance 1444 | -9/Mines | Assisted by a Guerilla fighting off Assembled 1479 | -9/Mines | Core integrity fell below 50% 1518 | -9/Mines | Lost 5 parts (1p3n1w) 1729 | -9/Mines | Learned Materials interactive machine intel 1741 | -9/Mines | Deemed a non-threat by the Exiles lab entrance 1742 | -9/Mines | Discovered new exit (range 5) 1749 | -9/Mines | Entered Exiles 1788 | -9/Exiles | Met 8R-AWN 1798 | -9/Exiles | Build established: Mutant 1835 | -9/Exiles | Met EX-HEX 1879 | -9/Exiles | Met EX-BIN 1899 | -9/Exiles | Met EX-DEC 1905 | -9/Exiles | Learned location of Zion (-7) 1988 | -9/Exiles | Discovered new exit (range 14) 2008 | -9/Exiles | Entered Mines 2300 | -8/Mines | Core integrity fell below 20% 2326 | -8/Mines | Lost 3 parts (1p2u) 2347 | -8/Mines | Discovered new exit (range 6) 2355 | -8/Mines | Entered Materials 2355 | -8/Materials | Evolved 2 slots: Propulsion x1, Utility x1 2356 | -8/Materials | Loaded intel: 16 interactive machine locations 3046 | -8/Materials | Discovered new exit (range 10) 3423 | -8/Materials | Central database locked down 3575 | -8/Materials | Discovered new exit (range 4) 3638 | -8/Materials | Repaired Imp. Treads 3678 | -8/Materials | Repaired Hrd. Light Armor Plating 4193 | -8/Materials | Entered Factory 4193 | -7/Factory | Evolved 2 slots: Utility x2 4872 | -7/Factory | Identified exit to Lower Caves 5031 | -7/Factory | Garrison activated, responded to threat 5375 | -7/Factory | Build established: Scavenger-Mutant 5975 | -7/Factory | Repaired Med. Treads 6015 | -7/Factory | Repaired Seismic Detector 6406 | -7/Factory | Destroyed 7 combat bots 6593 | -7/Factory | First assault squad dispatched 6619 | -7/Factory | Entered Lower Caves 6862 | -7/Lower Caves | Spotted B-75 Beast 7150 | -7/Lower Caves | Discovered new exit (range 12) 7230 | -7/Lower Caves | Found Alien Artifact 7230 | -7/Lower Caves | Identified Core Expander 7230 | -7/Lower Caves | Installed Core Expander, added new Utility slot 7403 | -7/Lower Caves | Entered another Lower Caves area 7711 | -7/Lower Caves | Attracted the attention of an 0b10 outpost 7780 | -7/Lower Caves | Destroyed 7 combat bots 7899 | -7/Lower Caves | Discovered new exit (range 14) 7921 | -7/Lower Caves | Entered Zion 7921 | -7/Zion | Accompanied by 2 allies 7971 | -7/Zion | System corruption cleaned by Quarantine Array 8411 | -7/Zion | Learned Factory non-interactive machine intel 8582 | -7/Zion | Visited the Megawrench Repair Shop 8654 | -7/Zion | Learned location of Data Miner (-6) 8755 | -7/Zion | Given the Hacking Drone Bay 9132 | -7/Zion | Megawrench repaired 11 parts 9230 | -7/Zion | Found Prototype Device 9230 | -7/Zion | Identified Phasing AFG 9274 | -7/Zion | Found Prototype Special Weapon 9277 | -7/Zion | Found Prototype Special Weapon 9280 | -7/Zion | Found Prototype Special Weapon 9392 | -7/Zion | Discovered new exit (range 3) 9469 | -7/Zion | Found Prototype Special Weapon 9548 | -7/Zion | Entered Deep Caves 9548 | -7/Deep Caves | Accompanied by 1 ally 9769 | -7/Deep Caves | Attacked by Z-Imprinter 9780 | -7/Deep Caves | Core integrity fell below 50% 9783 | -7/Deep Caves | Identified RU-N14's Throwing Claymores (x4) 9794 | -7/Deep Caves | Destroyed Z-Imprinter 10002 | -7/Deep Caves | Found Prototype Protection 10002 | -7/Deep Caves | Identified Zio. Weapon Casing 10023 | -7/Deep Caves | Z-Facility disabled 10075 | -7/Deep Caves | Build established: Mutant 10089 | -7/Deep Caves | Lost 4 parts (1p2n1u) 10537 | -7/Deep Caves | Discovered new exit (range 6) 10670 | -7/Deep Caves | Spotted as-68695 10741 | -7/Deep Caves | Destroyed as-68695 10769 | -7/Deep Caves | Lost 4 parts (1n3u) 10865 | -7/Deep Caves | Triggered Deep Caves wall 10865 | -7/Deep Caves | Spotted AS-01903 10865 | -7/Deep Caves | Spotted AS-57747 10870 | -7/Deep Caves | Exposed GOLEM chamber 10874 | -7/Deep Caves | Core integrity fell below 20% 10888 | -7/Deep Caves | Destroyed AS-57747 10888 | -7/Deep Caves | Destroyed AS-01903 10906 | -7/Deep Caves | Destroyed 36 combat bots 10911 | -7/Deep Caves | Lost 5 parts (1p2n2u) 10922 | -7/Deep Caves | Found GOLEM Unit 10927 | -7/Deep Caves | Found GOLEM Unit 10931 | -7/Deep Caves | Found GOLEM Unit 10936 | -7/Deep Caves | Found GOLEM Unit 11198 | -7/Deep Caves | Build established: Golem 11371 | -7/Deep Caves | Spotted as-25491 11374 | -7/Deep Caves | Spotted as-89699 11391 | -7/Deep Caves | Entered Proximity Caves 11533 | -6/Proximity Caves | Build established: Mutant 11543 | -6/Proximity Caves | Learned 4 Factory zone layouts 11572 | -6/Proximity Caves | Attracted the attention of an 0b10 checkpoint 11613 | -6/Proximity Caves | Spotted B-75 Beast 11792 | -6/Proximity Caves | Identified exit to Factory 11979 | -6/Proximity Caves | Entered Factory 11979 | -6/Factory | Evolved 2 slots: Power x1, Utility x1 11980 | -6/Factory | Identified exit to Factory 11981 | -6/Factory | Loaded intel: 198 non-interactive machine locations 12077 | -6/Factory | Identified exit to Lower Caves 12489 | -6/Factory | Entered Lower Caves 12883 | -6/Lower Caves | Encountered a Warlord checkpoint 12884 | -6/Lower Caves | Spotted B-75 Beast 13024 | -6/Lower Caves | Learned Factory emergency access door positions 13056 | -6/Lower Caves | Discovered new exit (range 16) 13323 | -6/Lower Caves | Entered another Lower Caves area 13377 | -6/Lower Caves | Build established: Golem 13387 | -6/Lower Caves | Discovered exit to Factory (range 5) 13716 | -6/Lower Caves | Encountered a Warlord checkpoint 13878 | -6/Lower Caves | Build established: Mutant 13890 | -6/Lower Caves | Discovered new exit (range 4) 13902 | -6/Lower Caves | Entered Data Miner 13903 | -6/Data Miner | Discovered new exit (range 6) 13933 | -6/Data Miner | Met Data Miner 13966 | -6/Data Miner | Learned location of Section 7 (-2) 13966 | -6/Data Miner | Acquired the access code to Warlord's prototype stash 13988 | -6/Data Miner | Received God Mode back door access code from Data Miner 14087 | -6/Data Miner | Entered Proximity Caves 14169 | -5/Proximity Caves | Escorted by Enhanced Grunt 14419 | -5/Proximity Caves | Attracted the attention of an 0b10 checkpoint 14550 | -5/Proximity Caves | Spotted B-75 Beast 14567 | -5/Proximity Caves | Discovered exit to Factory (range 3) 14668 | -5/Proximity Caves | Entered Factory 14668 | -5/Factory | Evolved 2 slots: Utility x2 14669 | -5/Factory | Identified exit to Upper Caves 14724 | -5/Factory | Repaired Arm. Huge Wheel 15028 | -5/Factory | Destroyed 12 combat bots 15035 | -5/Factory | Lost 6 parts (4u2w) 15543 | -5/Factory | Build established: Golem 16081 | -5/Factory | Entered Upper Caves 16121 | -5/Upper Caves | Learned Factory emergency access door positions 16179 | -5/Upper Caves | Build established: Mutant 16193 | -5/Upper Caves | Attracted the attention of an 0b10 base 16233 | -5/Upper Caves | Destroyed 7 combat bots 16287 | -5/Upper Caves | Learned location of 1 exit from Proximity Caves 16312 | -5/Upper Caves | Spotted B-75 Beast 16510 | -5/Upper Caves | Build established: Golem 16583 | -5/Upper Caves | Discovered new exit (range 14) 16601 | -5/Upper Caves | Identified exit to Upper Caves 16603 | -5/Upper Caves | Entered another Upper Caves area 16604 | -5/Upper Caves | Identified exit to Warlord 16792 | -5/Upper Caves | Spotted B-75 Beast 17169 | -5/Upper Caves | Entered Warlord 17170 | -5/Warlord | Identified exit to Proximity Caves 17457 | -5/Warlord | Received a Watcher feed algorithm from an ecstatic Tinkerer 18004 | -5/Warlord | Build established: Commander-Golem 18105 | -5/Warlord | Met Warlord 18112 | -5/Warlord | Warlord's base attacked by MAIN.C 18124 | -5/Warlord | Opened Warlord's prototype stash 18134 | -5/Warlord | Found Prototype Device 18134 | -5/Warlord | Identified Exp. Focal Shield 18143 | -5/Warlord | Found Prototype Hackware 18154 | -5/Warlord | Found Prototype Reactor 18336 | -5/Warlord | Found Prototype Piercing Weapon 18341 | -5/Warlord | Found Prototype Piercing Weapon 18462 | -5/Warlord | Warlord forces counterattacked 18612 | -5/Warlord | Spotted Executioner 18612 | -5/Warlord | Spotted Striker 18612 | -5/Warlord | Spotted B-86 Titan 18665 | -5/Warlord | Entered Proximity Caves 18666 | -4/Proximity Caves | Identified exit to Factory 18914 | -4/Proximity Caves | Build established: Scavenger-Mutant 19143 | -4/Proximity Caves | Entered Factory 19143 | -4/Factory | Evolved 2 slots: Power x1, Utility x1 19454 | -4/Factory | Repaired Imp. Medium Armor Plating 19610 | -4/Factory | Garrison activated, responded to threat 20056 | -4/Factory | Destroyed 7 combat bots 20198 | -4/Factory | Identified exit to Upper Caves 20198 | -4/Factory | Identified exit to Extension 20198 | -4/Factory | Identified exit to Armory 20547 | -4/Factory | Build established: Generator-Golem 20893 | -4/Factory | First assault squad dispatched 20908 | -4/Factory | Incoming assault squad redirected 21057 | -4/Factory | Entered Extension 21439 | -4/Extension | Rescued a captive Derelict 21441 | -4/Extension | Rescued a captive Derelict 21480 | -4/Extension | Rescued a captive Derelict 21560 | -4/Extension | Rescued a captive Derelict 21579 | -4/Extension | Rescued a captive Derelict 21579 | -4/Extension | Rescued a captive Derelict 21659 | -4/Extension | Rescued a captive Derelict 21660 | -4/Extension | Rescued a captive Derelict 21888 | -4/Extension | Spotted B-86 Titan 21908 | -4/Extension | Spotted B-86 Titan 21921 | -4/Extension | Destroyed B-86 Titan 21968 | -4/Extension | Destroyed B-86 Titan 21989 | -4/Extension | Lost 3 parts (1p2u) 22115 | -4/Extension | Rescued a captive Derelict 22164 | -4/Extension | Rescued a captive Derelict 22396 | -4/Extension | Rescued a captive Derelict 22716 | -4/Extension | Rescued A7 22968 | -4/Extension | Discovered new exit (range 16) 22970 | -4/Extension | Discovered new exit (range 15) 23009 | -4/Extension | Entered Cetus 23009 | -4/Cetus | Accompanied by 1 ally (A7) 23014 | -4/Cetus | Acquired a Cetus Manufacturing Module code from A7 23035 | -4/Cetus | Spotted Cetus Guard 23035 | -4/Cetus | Spotted Cetus Guard 23040 | -4/Cetus | Spotted Cetus Guard 23045 | -4/Cetus | Allies destroyed Cetus Guard 23045 | -4/Cetus | Spotted Cetus Guard 23052 | -4/Cetus | Destroyed Cetus Guard 23054 | -4/Cetus | Allies destroyed Cetus Guard 23056 | -4/Cetus | Allies destroyed Cetus Guard 23177 | -4/Cetus | Started Cetus Manufacturing Module 23202 | -4/Cetus | Manufactured an Enhanced Grunt 23210 | -4/Cetus | Escorted A7 to Cetus Mainframe 23227 | -4/Cetus | Manufactured an Enhanced Grunt 23252 | -4/Cetus | Manufactured an Enhanced Grunt 23277 | -4/Cetus | Manufactured an Enhanced Grunt 23302 | -4/Cetus | Manufactured an Enhanced Grunt 23428 | -4/Cetus | Discovered new exit (range 15) 23462 | -4/Cetus | Spotted Cetus Guard 23462 | -4/Cetus | Spotted Cetus Guard 23464 | -4/Cetus | Spotted Cetus Guard 23464 | -4/Cetus | Spotted Cetus Guard 23480 | -4/Cetus | Allies destroyed Cetus Guard 23487 | -4/Cetus | Allies destroyed Cetus Guard 23487 | -4/Cetus | Destroyed Cetus Guard 23488 | -4/Cetus | Allies destroyed Cetus Guard 23497 | -4/Cetus | Discovered new exit (range 15) 23511 | -4/Cetus | Met Revision 17 23589 | -4/Cetus | Entered Archives 23589 | -4/Archives | Accompanied by 3 allies (A7) 23594 | -4/Archives | Received a hacking code to weaken MAIN.C 23647 | -4/Archives | Found Prototype Device 23647 | -4/Archives | Identified Exp. Thermal Shield 23670 | -4/Archives | Discovered new exit (range 15) 24117 | -4/Archives | Discovered new exit (range 16) 24147 | -4/Archives | Entered Hub_04(d) 24147 | -4/Hub_04(d) | Accompanied by 1 ally 24377 | -4/Hub_04(d) | Build established: Generator-Mutant 24508 | -4/Hub_04(d) | Discovered new exit (range 9) 24634 | -4/Hub_04(d) | Discovered new exit (range 9) 24711 | -4/Hub_04(d) | Network Hub disabled 24714 | -4/Hub_04(d) | Spotted Lightning 24746 | -4/Hub_04(d) | Spotted Lightning 24749 | -4/Hub_04(d) | Entered Research 24749 | -3/Research | Evolved 2 slots: Propulsion x2 24931 | -3/Research | Fabricated Imp. Remote Force Field? 25538 | -3/Research | Identified exit to Testing 26146 | -3/Research | Discovered new exit (range 4) 26193 | -3/Research | Found Prototype Device 26193 | -3/Research | Identified System Purifier 26249 | -3/Research | First assault squad dispatched 26270 | -3/Research | Incoming assault squad redirected 26307 | -3/Research | Entered Testing 26557 | -3/Testing | First assault squad dispatched 26576 | -3/Testing | Incoming assault squad redirected 26597 | -3/Testing | Incoming assault squad redirected 26667 | -3/Testing | Destroyed 8 combat bots 26746 | -3/Testing | Discovered new exit (range 9) 26863 | -3/Testing | Unstable Terrabomb Derivative detonated 26994 | -3/Testing | Build established: Generator-Golem 27379 | -3/Testing | Repaired Centrium Heavy Treads 27434 | -3/Testing | Found Prototype Energy Cannon 27559 | -3/Testing | Entered Research 27559 | -2/Research | Warlord forces began assault on 0b10 27559 | -2/Research | Evolved 2 slots: Utility x2 27621 | -2/Research | Identified Disintegrator 27669 | -2/Research | Research machine network offline 27736 | -2/Research | Met up with Warlord 27861 | -2/Research | Discovered new exit (range 7) 27908 | -2/Research | Build established: Generator-Mutant 28057 | -2/Research | Identified exit to Access 28069 | -2/Research | Borebot progress halted 28123 | -2/Research | Spotted B-90 Cyclops 28278 | -2/Research | Spotted Striker 28278 | -2/Research | Spotted Striker 28396 | -2/Research | Borebot progress halted 28421 | -2/Research | Spotted Striker 28422 | -2/Research | Spotted Striker 28566 | -2/Research | Found Prototype Processor 28566 | -2/Research | Identified Exp. Targeting Computer 28569 | -2/Research | Found Prototype Processor 28569 | -2/Research | Identified Exp. Core Analyzer 28654 | -2/Research | Discovered exit to Access (range 5) 28780 | -2/Research | Spotted Striker 28804 | -2/Research | Destroyed Striker 28846 | -2/Research | Lost 3 parts (2u1w) 28856 | -2/Research | Destroyed 8 combat bots 28904 | -2/Research | Spotted Striker 28906 | -2/Research | Destroyed Striker 29046 | -2/Research | Spotted Executioner 29050 | -2/Research | Destroyed Executioner 29050 | -2/Research | Spotted Executioner 29053 | -2/Research | Destroyed Executioner 29064 | -2/Research | Build established: Generator-Golem 29089 | -2/Research | Found Exp. Core Analyzer 29125 | -2/Research | Spotted B-90 Cyclops 29197 | -2/Research | Destroyed B-90 Cyclops 29294 | -2/Research | Discovered new exit (range 16) 29296 | -2/Research | Spotted B-90 Cyclops 29336 | -2/Research | Identified exit to Quarantine 29346 | -2/Research | Entered Quarantine 29400 | -2/Quarantine | Found Alien Impact Weapon 29484 | -2/Quarantine | Repaired Centrium Heavy Treads 29599 | -2/Quarantine | Identified System Mapper 29599 | -2/Quarantine | Identified Vortex Lance (x2) 29599 | -2/Quarantine | Identified Core Stripper 29599 | -2/Quarantine | Identified Vortex Chain Reactor 29772 | -2/Quarantine | Build established: Generator-Mutant 30079 | -2/Quarantine | Found Alien Artifact 30096 | -2/Quarantine | First assault squad dispatched 30116 | -2/Quarantine | Incoming assault squad redirected 30124 | -2/Quarantine | Found Alien Artifact 30177 | -2/Quarantine | Incoming assault squad redirected 30232 | -2/Quarantine | Destroyed 8 combat bots 30370 | -2/Quarantine | Garrison activated, responded to threat 30780 | -2/Quarantine | Spotted Alpha 7 30808 | -2/Quarantine | Destroyed Alpha 7 30851 | -2/Quarantine | Discovered exit to Access (range 19) 30883 | -2/Quarantine | Entered Access 30883 | -1/Access | Evolved 2 slots: Power x1, Weapon x1 30964 | -1/Access | Found Adv. Powered Armor 31374 | -1/Access | Destroyed 7 combat bots 31431 | -1/Access | First assault squad dispatched 31498 | -1/Access | Incoming assault squad redirected 31525 | -1/Access | Destroyed 12 combat bots 31697 | -1/Access | Incoming investigation squad redirected 31803 | -1/Access | Destroyed 19 combat bots 31819 | -1/Access | Crushed by falling debris 31819 | -1/Access | System corruption reached 10% 31850 | -1/Access | Lost 3 parts (2u1w) 31913 | -1/Access | Incoming assault squad redirected 31958 | -1/Access | Discovered new exit (range 7) 31969 | -1/Access | Entered Command 32219 | -1/Command | First assault squad dispatched 32280 | -1/Command | Incoming assault squad redirected 32518 | -1/Command | Incoming assault squad redirected 32551 | -1/Command | Build established: Hacker-Mutant 32740 | -1/Command | Incoming assault squad redirected 32768 | -1/Command | Destroyed 9 combat bots 32846 | -1/Command | Repaired Biometal Heavy Treads 33136 | -1/Command | Incoming assault squad redirected 33205 | -1/Command | Build established: Generator-Mutant 33245 | -1/Command | Incoming assault squad redirected 33334 | -1/Command | Disengaged cave seal 33334 | -1/Command | Derelicts emerged from the dark tunnel 33334 | -1/Command | Welcomed Warlord to Command 33526 | -1/Command | Incoming assault squad redirected 33541 | -1/Command | Warlord commented on Warlord statues 33552 | -1/Command | Spotted M Guard 33552 | -1/Command | Spotted M Guard 33553 | -1/Command | Spotted Combat Programmer 33554 | -1/Command | Spotted Combat Programmer 33556 | -1/Command | Combat Programmer assimilated allied 4E-LJI(l) 33560 | -1/Command | Combat Programmer assimilated allied UW-MRQ(i) 33574 | -1/Command | Destroyed M Guard 33607 | -1/Command | All MAIN.C guards destroyed 33624 | -1/Command | Lost 4 parts (1p2n1u) 33647 | -1/Command | Found Prototype Reactor 33647 | -1/Command | Identified Zero-point Reactor 33660 | -1/Command | Found Prototype Protection 33660 | -1/Command | Identified Hvy. Regenerative Plating 33739 | -1/Command | Met MAIN.C 33739 | -1/Command | Hacked MAIN.C using A7's code 33748 | -1/Command | Incoming assault squad redirected 33754 | -1/Command | 0b10 Conduit disabled 33774 | -1/Command | High security lockdown imminent 33776 | -1/Command | MAIN.C activated Command garrisons 33780 | -1/Command | Warlord destroyed during the assault 33834 | -1/Command | Destroyed MAIN.C 33852 | -1/Command | Discovered new exit (range 44) 33852 | -1/Command | Discovered new exit (range 93) 33852 | -1/Command | Identified Subatomic Replicator 33852 | -1/Command | Extracted map data and part IDs from MAIN.C's data core 33876 | -1/Command | Lost 11 parts (2p3n5u1w) 33885 | -1/Command | Destroyed 13 combat bots 33937 | -1/Command | System corruption reached 30% 33997 | -1/Command | Spotted B-99 Colossus 34009 | -1/Command | Destroyed 7 combat bots 34033 | -1/Command | Lost 4 parts (1p1u2w) 34112 | *** | Establishing 0b11! Last Messages --------------- 34003_ K-01 Serf collects debris. 34003_ Slug penetrates K-01 Serf. 34003_ Slug penetrates Wall. 34005_ R-10 Processor collects Corrupted Gamma Rifle. 34007_ System corrupted: Stasis Canceller rejected. 34007_ Acquired Stasis Canceller. 34010_ K-01 Serf collects debris. 34011_ P-80 Master resets R-10 Processor, system corruption cleaned. 34012_ K-01 Serf collects debris. 34013_ Acquired 27 matter. 34021_ K-01 Serf destroyed. 34022_ Acquired 10 matter. 34028_ O:CMX=J389Z2CTX6LRK9Y2|33WDKO DA5EK3 34044_ System corrupted: IFF burst signal emitted. 34055_ P-80 Master destroyed. 34058_ Acquired Mic. Antimatter Reactor. 34060_ System corrupted: Heat flow error (+186). 34076_ System corrupted: Matter fused (-5). 34095_ 49OPDZUFMDHHH>R2A:1>CTJ| WAZKXW0WJ [Achievement: Victory By Combat] Map ----- +----------------------------------------------------+ | # "######## # #######! | | %=%= | | % % !!|=! | | % = *]!| | | # # [%# #""!#### "" | | # ############# #?### #= #""""##?# " | | # # #????# #????? ###?# | | # # #????#H#?????# # ] #?#?###### | | # ######/####### ## %###??????? | | # # # ##= "######### | | # # # ## #????????? | | + # # # #????????? | | # # "" # + !! #????????? | | # # """" # # ! #????????? | | ###### # # """" " # #????????? | | ?????# # # "" # #################? | | ###??# # # + #? | | #??# # # # T#? | | #??# ######## # ###+########"""##? | | #####+######??# # !#?# ####"""##? | | ## #??# # =#?# # #? | | ## #??############## =#?# # #? | | ## "" #?????????#######!!### "# #? | | ## """" #?????????# [%!= # "# #? | | ## """" #?????????# [!== + "#########? | | ^^## "" #?????????# @ ###### # T#????????? | | ## #?????????# #????# # "#????????? | | ## #?????????#####????# # "#????????? | | ################??????????????# # "#????????? | | + ######?????????# # #????????? | | # # #?????????# # #????????? | | # #### #?????????# #######????????? | | # ################ #??????????????? | | # # + #??????????????? | | # # ### #??????????????? | | ################ "" #?# #??????????????? | | ##????????###### """" #?# ##?????????????? | | ########## # """" #?# #?????????????? | | # "" ### #?????????????? | | + + #?????????????? | | ########## # ### ##?????????????? | | ####?????#####+#############?# #??????????????? | | ?????????# #?????????# #??????????????? | | ?????????# #??????#######+###????????????? | | ?????????# #??????# #????????????? | | ?????????# #??????# #????????????? | | ?????????# #??????# #????????????? | | ?????????# #??????# #????????????? | | ?????????# #??????# #????????????? | | ?????????###########??????###########????????????? | +----------------------------------------------------+ Best States ------------- Heat Dissipation 129 Energy Generation 103 Energy Capacity 2090 Matter Stores 300 Matter Capacity 300 Sight Range 20 Robot Scan Range 15 Terrain Scan Range 14 Terrain Scan Density 10 Jamming Range 16 Additional Mass Support 20 EM Shielding 2 Armor Coverage 1200 Resistance: KI 15 Resistance: TH 15 Resistance: EX 15 Resistance: EM 25 Resistance: I 15 Resistance: S 15 Resistance: P 15 Propulsion Shielding 33 Utility Shielding 33 Weapon Shielding 100 Phase Shifting 8 Evasion (%) 63 Targeting Accuracy 20 Core Analysis 11 Armor Integrity Analysis 40 Recoil Reduction 6 Salvage Targeting 6 Offensive Hacking 34 Defensive Hacking 10 Item Schematics ----------------- Huge Storage Unit | -9/Materials | Hacked Seismic Detector | -9/Materials | Hacked Lgt. Armor Plating | -9/Materials | Scanalyzed Hacking Suite | -8/Materials | Scanalyzed Machine Analyzer | -8/Materials | Scanalyzed Combat Drone Bay | -6/Data Miner | Free Lgt. Regenerative Plating | -6/Data Miner | Free Enh. Flexi-carbon Leg | -6/Data Miner | Free Exp. Heat Sink | -6/Data Miner | Free Hvy. Gatling Laser | -6/Data Miner | Free Impulse Thruster | -6/Data Miner | Free Imp. Force Booster | -6/Data Miner | Free Phase Gun | -6/Data Miner | Free Antigrav System | -6/Data Miner | Free Hardcell Cannon | -6/Data Miner | Free Impulse Thruster Array | -6/Data Miner | Free Robot Schematics ------------------ S-10 Pest | -10/Materials | Hacked M-22 Extractor | -6/Data Miner | Free Y-64 Sentinel | -6/Data Miner | Free S-27 Virus | -6/Data Miner | Free E-15 Imp | -6/Data Miner | Free H-77 Assassin | -6/Data Miner | Free W-44 Eye | -6/Data Miner | Free Fabricated ------------ Imp. Remote Force Field | x2 | -3/Research | Preloaded Alien Tech Used ----------------- Core Expander Core Stripper Achievements -------------- Poison In The Code Victory By Combat Challenges ------------ None Game ------ Seed TeslaPrecisionLaser Manual? 0 Play Time 06:16:17 Cumulative 282.9 hours Start 2022.12.19 @ 15:39:34 End 2022.12.22 @ 15:44:18 Sessions 5 Manual Loads 0 Difficulty Rogue Special Mode None Game No. 110 Rogue 110 Adventurer 0 Explorer 0 Win Type 1 Total 9 Types 3/2/2/1/1/0/0/0/0 Lore% 85 Gallery% 82 Achievement% 68 Wizard Run 0 Options --------- ASCII 0 Keyboard 1 Movement Numpad Keybinds 0 Fullscreen 2 Font 18/X11 Map View 76x50 Tactical HUD 1 Map Filters NONE Filters NONE Steam 1 RUN: d95d73b8-e1d7-4ef1-a19d-844e4c8913f4